{"text_format":"1","workbook":"xlsx","n_sheets":3,"sheets":["Accounts","Checkbook","Report"],"not_rendered":{"charts":0,"images":1,"macros":1,"external_links":0,"defined_names":2,"comments":0,"pivot_tables":0},"unopened":[],"bounds":{"document_bytes":16777216,"sheet_cells":100000,"rows_first":2000,"rows_last":500,"rows_between":2000,"halvings":0,"cell_chars":16384,"cell_head_chars":4096},"cells_cut":0,"cells_raw":0,"read":"whole","date_system":"1900"}

{"sheet":"Accounts","index":0,"n_rows":49,"n_cols":4,"rows_kept":49,"cut":false,"hidden":false,"merged":[]}
[]
[]
[]
[]
[null,"Agent Accounting EXPENSES"]
[null,"Enter your Expense Categories",null,"Enter your Income Categories"]
[null,"Select from Pull Down",null,"Select from Pull Down"]
[null,"Advertising",null,"Commission Income"]
[null,"Bank Service Charges"]
[null,"Business Insurance"]
[null,"Car Payment(s)"]
[null,"Cell Phone"]
[null,"Client Gifts"]
[null,"Computer & Internet"]
[null,"Depreciation"]
[null,"Disability Ins"]
[null,"Donations"]
[null,"Dues & Subscriptions"]
[null,"Franchise Charges"]
[null,"Health Insurance"]
[null,"HOA Dues"]
[null,"Legal & Professional Services"]
[null,"Licensing & Permits"]
[null,"Marketing"]
[null,"MD and Dentist"]
[null,"Meals & Entertainment"]
[null,"Mortgage Interest"]
[null,"New Phone"]
[null,"Office Equipment"]
[null,"Office Expense"]
[null,"Office Fee"]
[null,"Office Supplies"]
[null,"Other"]
[null,"Other Business Property"]
[null,"Parking"]
[null,"Postage"]
[null,"Property Taxes"]
[null,"Realtor Membership"]
[null,"Recruiting & Retention"]
[null,"Rent Retail Space"]
[null,"Rental to Property Owners"]
[null,"Repairs & Maintenace"]
[null,"RX"]
[null,"SBA Interest Deduction"]
[null,"Signs"]
[null,"Training & Education"]
[null,"Travel"]
[null,"Utilities"]
[null,"Vehicle, Machinery & Equipment"]

{"sheet":"Checkbook","index":1,"n_rows":1243,"n_cols":10,"rows_kept":1243,"cut":false,"hidden":false,"merged":[]}
[]
[]
[null,"Agent Accounting CHECKBOOK"]
[]
[null,"ü","Date","#","To/From","For","Debit","Expense Account","Credit","Income Account"]
[null,null,null,null,null,null,null,"Select from Pull Down",null,"Select from Pull Down"]
[null,null,null,null,null,null,null,"Select from Pull Down",null,"Select from Pull Down"]
[null,null,null,null,null,null,null,"Select from Pull Down",null,"Select from Pull Down"]
[null,null,null,null,null,null,null,"Select from Pull Down",null,"Select from Pull Down"]
[null,null,null,null,null,null,null,"Select from Pull Down",null,"Select from Pull Down"]
[null,null,null,null,null,null,null,"Select from Pull Down",null,"Select from Pull Down"]
[null,null,null,null,null,null,null,"Select from Pull Down",null,"Select from Pull Down"]
[null,null,null,null,null,null,null,"Select from Pull Down",null,"Select from Pull Down"]
[null,null,null,null,null,null,null,"Select from Pull Down",null,"Select from Pull Down"]
[null,null,null,null,null,null,null,"Select from Pull Down",null,"Select from Pull Down"]
[null,null,null,null,null,null,null,"Select from Pull Down",null,"Select from Pull Down"]
[null,null,null,null,null,null,null,"Select from Pull Down",null,"Select from Pull Down"]
[null,null,null,null,null,null,null,"Select from Pull Down",null,"Select from Pull Down"]
[null,null,null,null,null,null,null,"Select from Pull Down",null,"Select from Pull Down"]
[null,null,null,null,null,null,null,"Select from Pull Down",null,"Select from Pull Down"]
[null,null,null,null,null,null,null,"Select from Pull Down",null,"Select from Pull Down"]
[null,null,null,null,null,null,null,"Select from Pull Down",null,"Select from Pull Down"]
[null,null,null,null,null,null,null,"Select from Pull Down",null,"Select from Pull Down"]
[null,null,null,null,null,null,null,"Select from Pull Down",null,"Select from Pull Down"]
[null,null,null,null,null,null,null,"Select from Pull Down",null,"Select from Pull Down"]
[null,null,null,null,null,null,null,"Select from Pull Down",null,"Select from Pull Down"]
[null,null,null,null,null,null,null,"Select from Pull Down",null,"Select from Pull Down"]
[null,null,null,null,null,null,null,"Select from Pull Down",null,"Select from Pull Down"]
[null,null,null,null,null,null,null,"Select from Pull Down",null,"Select from Pull Down"]
[null,null,null,null,null,null,null,"Select from Pull Down",null,"Select from Pull Down"]
[null,null,null,null,null,null,null,"Select from Pull Down",null,"Select from Pull Down"]
[null,null,null,null,null,null,null,"Select from Pull Down",null,"Select from Pull Down"]
[null,null,null,null,null,null,null,"Select from Pull Down",null,"Select from Pull Down"]
[null,null,null,null,null,null,null,"Select from Pull Down",null,"Select from Pull Down"]
[null,null,null,null,null,null,null,"Select from Pull Down",null,"Select from Pull Down"]
[null,null,null,null,null,null,null,"Select from Pull Down",null,"Select from Pull Down"]
[null,null,null,null,null,null,null,"Select from Pull Down",null,"Select from Pull Down"]
[null,null,null,null,null,null,null,"Select from Pull Down",null,"Select from Pull Down"]
[null,null,null,null,null,null,null,"Select from Pull Down",null,"Select from Pull Down"]
[null,null,null,null,null,null,null,"Select from Pull Down",null,"Select from Pull Down"]
[null,null,null,null,null,null,null,"Select from Pull Down",null,"Select from Pull Down"]
[null,null,null,null,null,null,null,"Select from Pull Down",null,"Select from Pull Down"]
[null,null,null,null,null,null,null,"Select from Pull Down",null,"Select from Pull Down"]
[null,null,null,null,null,null,null,"Select from Pull Down",null,"Select from Pull Down"]
[null,null,null,null,null,null,null,"Select from Pull Down",null,"Select from Pull Down"]
[null,null,null,null,null,null,null,"Select from Pull Down",null,"Select from Pull Down"]
[null,null,null,null,null,null,null,"Select from Pull Down",null,"Select from Pull Down"]
[null,null,null,null,null,null,null,"Select from Pull Down",null,"Select from Pull Down"]
[null,null,null,null,null,null,null,"Select from Pull Down",null,"Select from Pull Down"]
[null,null,null,null,null,null,null,"Select from Pull Down",null,"Select from Pull Down"]
[null,null,null,null,null,null,null,"Select from Pull Down",null,"Select from Pull Down"]
[null,null,null,null,null,null,null,"Select from Pull Down",null,"Select from Pull Down"]
[null,null,null,null,null,null,null,"Select from Pull Down",null,"Select from Pull Down"]
[null,null,null,null,null,null,null,"Select from Pull Down",null,"Select from Pull Down"]
[null,null,null,null,null,null,null,"Select from Pull Down",null,"Select from Pull Down"]
[null,null,null,null,null,null,null,"Select from Pull Down",null,"Select from Pull Down"]
[null,null,null,null,null,null,null,"Select from Pull Down",null,"Select from Pull Down"]
[null,null,null,null,null,null,null,"Select from Pull Down",null,"Select from Pull Down"]
[null,null,null,null,null,null,null,"Select from Pull Down",null,"Select from Pull Down"]
[null,null,null,null,null,null,null,"Select from Pull Down",null,"Select from Pull Down"]
[null,null,null,null,null,null,null,"Select from Pull Down",null,"Select from Pull Down"]
[null,null,null,null,null,null,null,"Select from Pull Down",null,"Select from Pull Down"]
[null,null,null,null,null,null,null,"Select from Pull Down",null,"Select from Pull Down"]
[null,null,null,null,null,null,null,"Select from Pull Down",null,"Select from Pull Down"]
[null,null,null,null,null,null,null,"Select from Pull Down",null,"Select from Pull Down"]
[null,null,null,null,null,null,null,"Select from Pull Down",null,"Select from Pull Down"]
[null,null,null,null,null,null,null,"Select from Pull Down",null,"Select from Pull Down"]
[null,null,null,null,null,null,null,"Select from Pull Down",null,"Select from Pull Down"]
[null,null,null,null,null,null,null,"Select from Pull Down",null,"Select from Pull Down"]
[null,null,null,null,null,null,null,"Select from Pull Down",null,"Select from Pull Down"]
[null,null,null,null,null,null,null,"Select from Pull Down",null,"Select from Pull Down"]
[null,null,null,null,null,null,null,"Select from Pull Down",null,"Select from Pull Down"]
[null,null,null,null,null,null,null,"Select from Pull Down",null,"Select from Pull Down"]
[null,null,null,null,null,null,null,"Select from Pull Down",null,"Select from Pull Down"]
[null,null,null,null,null,null,null,"Select from Pull Down",null,"Select from Pull Down"]
[null,null,null,null,null,null,null,"Select from Pull Down",null,"Select from Pull Down"]
[null,null,null,null,null,null,null,"Select from Pull Down",null,"Select from Pull Down"]
[null,null,null,null,null,null,null,"Select from Pull Down",null,"Select from Pull Down"]
[null,null,null,null,null,null,null,"Select from Pull Down",null,"Select from Pull Down"]
[null,null,null,null,null,null,null,"Select from Pull Down",null,"Select from Pull Down"]
[null,null,null,null,null,null,null,"Select from Pull Down",null,"Select from Pull Down"]
[null,null,null,null,null,null,null,"Select from Pull Down",null,"Select from Pull Down"]
[null,null,null,null,null,null,null,"Select from Pull Down",null,"Select from Pull Down"]
[null,null,null,null,null,null,null,"Select from Pull Down",null,"Select from Pull Down"]
[null,null,null,null,null,null,null,"Select from Pull Down",null,"Select from Pull Down"]
[null,null,null,null,null,null,null,"Select from Pull Down",null,"Select from Pull Down"]
[null,null,null,null,null,null,null,"Select from Pull Down",null,"Select from Pull Down"]
[null,null,null,null,null,null,null,"Select from Pull Down",null,"Select from Pull Down"]
[null,null,null,null,null,null,null,"Select from Pull Down",null,"Select from Pull Down"]
[null,null,null,null,null,null,null,"Select from Pull Down",null,"Select from Pull Down"]
[null,null,null,null,null,null,null,"Select from Pull Down",null,"Select from Pull Down"]
[null,null,null,null,null,null,null,"Select from Pull Down",null,"Select from Pull Down"]
[null,null,null,null,null,null,null,"Select from Pull Down",null,"Select from Pull Down"]
[null,null,null,null,null,null,null,"Select from Pull Down",null,"Select from Pull Down"]
[null,null,null,null,null,null,null,"Select from Pull Down",null,"Select from Pull Down"]
[null,null,null,null,null,null,null,"Select from Pull Down",null,"Select from Pull Down"]
[null,null,null,null,null,null,null,"Select from Pull Down",null,"Select from Pull Down"]
[null,null,null,null,null,null,null,"Select from Pull Down",null,"Select from Pull Down"]
[null,null,null,null,null,null,null,"Select from Pull Down",null,"Select from Pull Down"]
[null,null,null,null,null,null,null,"Select from Pull Down",null,"Select from Pull Down"]
[null,null,null,null,null,null,null,"Select from Pull Down",null,"Select from Pull Down"]
[null,null,null,null,null,null,null,"Select from Pull Down",null,"Select from Pull Down"]
[null,null,null,null,null,null,null,"Select from Pull Down",null,"Select from Pull Down"]
[null,null,null,null,null,null,null,"Select from Pull Down",null,"Select from Pull Down"]
[null,null,null,null,null,null,null,"Select from Pull Down",null,"Select from Pull Down"]
[null,null,null,null,null,null,null,"Select from Pull Down",null,"Select from Pull Down"]
[null,null,null,null,null,null,null,"Select from Pull Down",null,"Select from Pull Down"]
[null,null,null,null,null,null,null,"Select from Pull Down",null,"Select from Pull Down"]
[null,null,null,null,null,null,null,"Select from Pull Down",null,"Select from Pull Down"]
[null,null,null,null,null,null,null,"Select from Pull Down",null,"Select from Pull Down"]
[null,null,null,null,null,null,null,"Select from Pull Down",null,"Select from Pull Down"]
[null,null,null,null,null,null,null,"Select from Pull Down",null,"Select from Pull Down"]
[null,null,null,null,null,null,null,"Select from Pull Down",null,"Select from Pull Down"]
[null,null,null,null,null,null,null,"Select from Pull Down",null,"Select from Pull Down"]
[null,null,null,null,null,null,null,"Select from Pull Down",null,"Select from Pull Down"]
[null,null,null,null,null,null,null,"Select from Pull Down",null,"Select from Pull Down"]
[null,null,null,null,null,null,null,"Select from Pull Down",null,"Select from Pull Down"]
[null,null,null,null,null,null,null,"Select from Pull Down",null,"Select from Pull Down"]
[null,null,null,null,null,null,null,"Select from Pull Down",null,"Select from Pull Down"]
[null,null,null,null,null,null,null,"Select from Pull Down",null,"Select from Pull Down"]
[null,null,null,null,null,null,null,"Select from Pull Down",null,"Select from Pull Down"]
[null,null,null,null,null,null,null,"Select from Pull Down",null,"Select from Pull Down"]
[null,null,null,null,null,null,null,"Select from Pull Down",null,"Select from Pull Down"]
[null,null,null,null,null,null,null,"Select from Pull Down",null,"Select from Pull Down"]
[null,null,null,null,null,null,null,"Select from Pull Down",null,"Select from Pull Down"]
[null,null,null,null,null,null,null,"Select from Pull Down",null,"Select from Pull Down"]
[null,null,null,null,null,null,null,"Select from Pull Down",null,"Select from Pull Down"]
[null,null,null,null,null,null,null,"Select from Pull Down",null,"Select from Pull Down"]
[null,null,null,null,null,null,null,"Select from Pull Down",null,"Select from Pull Down"]
[null,null,null,null,null,null,null,"Select from Pull Down",null,"Select from Pull Down"]
[null,null,null,null,null,null,null,"Select from Pull Down",null,"Select from Pull Down"]
[null,null,null,null,null,null,null,"Select from Pull Down",null,"Select from Pull Down"]
[null,null,null,null,null,null,null,"Select from Pull Down",null,"Select from Pull Down"]
[null,null,null,null,null,null,null,"Select from Pull Down",null,"Select from Pull Down"]
[null,null,null,null,null,null,null,"Select from Pull Down",null,"Select from Pull Down"]
[null,null,null,null,null,null,null,"Select from Pull Down",null,"Select from Pull Down"]
[null,null,null,null,null,null,null,"Select from Pull Down",null,"Select from Pull Down"]
[null,null,null,null,null,null,null,"Select from Pull Down",null,"Select from Pull Down"]
[null,null,null,null,null,null,null,"Select from Pull Down",null,"Select from Pull Down"]
[null,null,null,null,null,null,null,"Select from Pull Down",null,"Select from Pull Down"]
[null,null,null,null,null,null,null,"Select from Pull Down",null,"Select from Pull Down"]
[null,null,null,null,null,null,null,"Select from Pull Down",null,"Select from Pull Down"]
[null,null,null,null,null,null,null,"Select from Pull Down",null,"Select from Pull Down"]
[null,null,null,null,null,null,null,"Select from Pull Down",null,"Select from Pull Down"]
[null,null,null,null,null,null,null,"Select from Pull Down",null,"Select from Pull Down"]
[null,null,null,null,null,null,null,"Select from Pull Down",null,"Select from Pull Down"]
[null,null,null,null,null,null,null,"Select from Pull Down",null,"Select from Pull Down"]
[null,null,null,null,null,null,null,"Select from Pull Down",null,"Select from Pull Down"]
[null,null,null,null,null,null,null,"Select from Pull Down",null,"Select from Pull Down"]
[null,null,null,null,null,null,null,"Select from Pull Down",null,"Select from Pull Down"]
[null,null,null,null,null,null,null,"Select from Pull Down",null,"Select from Pull Down"]
[null,null,null,null,null,null,null,"Select from Pull Down",null,"Select from Pull Down"]
[null,null,null,null,null,null,null,"Select from Pull Down",null,"Select from Pull Down"]
[null,null,null,null,null,null,null,"Select from Pull Down",null,"Select from Pull Down"]
[null,null,null,null,null,null,null,"Select from Pull Down",null,"Select from Pull Down"]
[null,null,null,null,null,null,null,"Select from Pull Down",null,"Select from Pull Down"]
[null,null,null,null,null,null,null,"Select from Pull Down",null,"Select from Pull Down"]
[null,null,null,null,null,null,null,"Select from Pull Down",null,"Select from Pull Down"]
[null,null,null,null,null,null,null,"Select from Pull Down",null,"Select from Pull Down"]
[null,null,null,null,null,null,null,"Select from Pull Down",null,"Select from Pull Down"]
[null,null,null,null,null,null,null,"Select from Pull Down",null,"Select from Pull Down"]
[null,null,null,null,null,null,null,"Select from Pull Down",null,"Select from Pull Down"]
[null,null,null,null,null,null,null,"Select from Pull Down",null,"Select from Pull Down"]
[null,null,null,null,null,null,null,"Select from Pull Down",null,"Select from Pull Down"]
[null,null,null,null,null,null,null,"Select from Pull Down",null,"Select from Pull Down"]
[null,null,null,null,null,null,null,"Select from Pull Down",null,"Select from Pull Down"]
[null,null,null,null,null,null,null,"Select from Pull Down",null,"Select from Pull Down"]
[null,null,null,null,null,null,null,"Select from Pull Down",null,"Select from Pull Down"]
[null,null,null,null,null,null,null,"Select from Pull Down",null,"Select from Pull Down"]
[null,null,null,null,null,null,null,"Select from Pull Down",null,"Select from Pull Down"]
[null,null,null,null,null,null,null,"Select from Pull Down",null,"Select from Pull Down"]
[null,null,null,null,null,null,null,"Select from Pull Down",null,"Select from Pull Down"]
[null,null,null,null,null,null,null,"Select from Pull Down",null,"Select from Pull Down"]
[null,null,null,null,null,null,null,"Select from Pull Down",null,"Select from Pull Down"]
[null,null,null,null,null,null,null,"Select from Pull Down",null,"Select from Pull Down"]
[null,null,null,null,null,null,null,"Select from Pull Down",null,"Select from Pull Down"]
[null,null,null,null,null,null,null,"Select from Pull Down",null,"Select from Pull Down"]
[null,null,null,null,null,null,null,"Select from Pull Down",null,"Select from Pull Down"]
[null,null,null,null,null,null,null,"Select from Pull Down",null,"Select from Pull Down"]
[null,null,null,null,null,null,null,"Select from Pull Down",null,"Select from Pull Down"]
[null,null,null,null,null,null,null,"Select from Pull Down",null,"Select from Pull Down"]
[null,null,null,null,null,null,null,"Select from Pull Down",null,"Select from Pull Down"]
[null,null,null,null,null,null,null,"Select from Pull Down",null,"Select from Pull Down"]
[null,null,null,null,null,null,null,"Select from Pull Down",null,"Select from Pull Down"]
[null,null,null,null,null,null,null,"Select from Pull Down",null,"Select from Pull Down"]
[null,null,null,null,null,null,null,"Select from Pull Down",null,"Select from Pull Down"]
[null,null,null,null,null,null,null,"Select from Pull Down",null,"Select from Pull Down"]
[null,null,null,null,null,null,null,"Select from Pull Down",null,"Select from Pull Down"]
[null,null,null,null,null,null,null,"Select from Pull Down",null,"Select from Pull Down"]
[null,null,null,null,null,null,null,"Select from Pull Down",null,"Select from Pull Down"]
[null,null,null,null,null,null,null,"Select from Pull Down",null,"Select from Pull Down"]
[null,null,null,null,null,null,null,"Select from Pull Down",null,"Select from Pull Down"]
[null,null,null,null,null,null,null,"Select from Pull Down",null,"Select from Pull Down"]
[null,null,null,null,null,null,null,"Select from Pull Down",null,"Select from Pull Down"]
[null,null,null,null,null,null,null,"Select from Pull Down",null,"Select from Pull Down"]
[null,null,null,null,null,null,null,"Select from Pull Down",null,"Select from Pull Down"]
[null,null,null,null,null,null,null,"Select from Pull Down",null,"Select from Pull Down"]
[null,null,null,null,null,null,null,"Select from Pull Down",null,"Select from Pull Down"]
[null,null,null,null,null,null,null,"Select from Pull Down",null,"Select from Pull Down"]
[null,null,null,null,null,null,null,"Select from Pull Down",null,"Select from Pull Down"]
[null,null,null,null,null,null,null,"Select from Pull Down",null,"Select from Pull Down"]
[null,null,null,null,null,null,null,"Select from Pull Down",null,"Select from Pull Down"]
[null,null,null,null,null,null,null,"Select from Pull Down",null,"Select from Pull Down"]
[null,null,null,null,null,null,null,"Select from Pull Down",null,"Select from Pull Down"]
[null,null,null,null,null,null,null,"Select from Pull Down",null,"Select from Pull Down"]
[null,null,null,null,null,null,null,"Select from Pull Down",null,"Select from Pull Down"]
[null,null,null,null,null,null,null,"Select from Pull Down",null,"Select from Pull Down"]
[null,null,null,null,null,null,null,"Select from Pull Down",null,"Select from Pull Down"]
[null,null,null,null,null,null,null,"Select from Pull Down",null,"Select from Pull Down"]
[null,null,null,null,null,null,null,"Select from Pull Down",null,"Select from Pull Down"]
[null,null,null,null,null,null,null,"Select from Pull Down",null,"Select from Pull Down"]
[null,null,null,null,null,null,null,"Select from Pull Down",null,"Select from Pull Down"]
[null,null,null,null,null,null,null,"Select from Pull Down",null,"Select from Pull Down"]
[null,null,null,null,null,null,null,"Select from Pull Down",null,"Select from Pull Down"]
[null,null,null,null,null,null,null,"Select from Pull Down",null,"Select from Pull Down"]
[null,null,null,null,null,null,null,"Select from Pull Down",null,"Select from Pull Down"]
[null,null,null,null,null,null,null,"Select from Pull Down",null,"Select from Pull Down"]
[null,null,null,null,null,null,null,"Select from Pull Down",null,"Select from Pull Down"]
[null,null,null,null,null,null,null,"Select from Pull Down",null,"Select from Pull Down"]
[null,null,null,null,null,null,null,"Select from Pull Down",null,"Select from Pull Down"]
[null,null,null,null,null,null,null,"Select from Pull Down",null,"Select from Pull Down"]
[null,null,null,null,null,null,null,"Select from Pull Down",null,"Select from Pull Down"]
[null,null,null,null,null,null,null,"Select from Pull Down",null,"Select from Pull Down"]
[null,null,null,null,null,null,null,"Select from Pull Down",null,"Select from Pull Down"]
[null,null,null,null,null,null,null,"Select from Pull Down",null,"Select from Pull Down"]
[null,null,null,null,null,null,null,"Select from Pull Down",null,"Select from Pull Down"]
[null,null,null,null,null,null,null,"Select from Pull Down",null,"Select from Pull Down"]
[null,null,null,null,null,null,null,"Select from Pull Down",null,"Select from Pull Down"]
[null,null,null,null,null,null,null,"Select from Pull Down",null,"Select from Pull Down"]
[null,null,null,null,null,null,null,"Select from Pull Down",null,"Select from Pull Down"]
[null,null,null,null,null,null,null,"Select from Pull Down",null,"Select from Pull Down"]
[null,null,null,null,null,null,null,"Select from Pull Down",null,"Select from Pull Down"]
[null,null,null,null,null,null,null,"Select from Pull Down",null,"Select from Pull Down"]
[null,null,null,null,null,null,null,"Select from Pull Down",null,"Select from Pull Down"]
[null,null,null,null,null,null,null,"Select from Pull Down",null,"Select from Pull Down"]
[null,null,null,null,null,null,null,"Select from Pull Down",null,"Select from Pull Down"]
[null,null,null,null,null,null,null,"Select from Pull Down",null,"Select from Pull Down"]
[null,null,null,null,null,null,null,"Select from Pull Down",null,"Select from Pull Down"]
[null,null,null,null,null,null,null,"Select from Pull Down",null,"Select from Pull Down"]
[null,null,null,null,null,null,null,"Select from Pull Down",null,"Select from Pull Down"]
[null,null,null,null,null,null,null,"Select from Pull Down",null,"Select from Pull Down"]
[null,null,null,null,null,null,null,"Select from Pull Down",null,"Select from Pull Down"]
[null,null,null,null,null,null,null,"Select from Pull Down",null,"Select from Pull Down"]
[null,null,null,null,null,null,null,"Select from Pull Down",null,"Select from Pull Down"]
[null,null,null,null,null,null,null,"Select from Pull Down",null,"Select from Pull Down"]
[null,null,null,null,null,null,null,"Select from Pull Down",null,"Select from Pull Down"]
[null,null,null,null,null,null,null,"Select from Pull Down",null,"Select from Pull Down"]
[null,null,null,null,null,null,null,"Select from Pull Down",null,"Select from Pull Down"]
[null,null,null,null,null,null,null,"Select from Pull Down",null,"Select from Pull Down"]
[null,null,null,null,null,null,null,"Select from Pull Down",null,"Select from Pull Down"]
[null,null,null,null,null,null,null,"Select from Pull Down",null,"Select from Pull Down"]
[null,null,null,null,null,null,null,"Select from Pull Down",null,"Select from Pull Down"]
[null,null,null,null,null,null,null,"Select from Pull Down",null,"Select from Pull Down"]
[null,null,null,null,null,null,null,"Select from Pull Down",null,"Select from Pull Down"]
[null,null,null,null,null,null,null,"Select from Pull Down",null,"Select from Pull Down"]
[null,null,null,null,null,null,null,"Select from Pull Down",null,"Select from Pull Down"]
[null,null,null,null,null,null,null,"Select from Pull Down",null,"Select from Pull Down"]
[null,null,null,null,null,null,null,"Select from Pull Down",null,"Select from Pull Down"]
[null,null,null,null,null,null,null,"Select from Pull Down",null,"Select from Pull Down"]
[null,null,null,null,null,null,null,"Select from Pull Down",null,"Select from Pull Down"]
[null,null,null,null,null,null,null,"Select from Pull Down",null,"Select from Pull Down"]
[null,null,null,null,null,null,null,"Select from Pull Down",null,"Select from Pull Down"]
[null,null,null,null,null,null,null,"Select from Pull Down",null,"Select from Pull Down"]
[null,null,null,null,null,null,null,"Select from Pull Down",null,"Select from Pull Down"]
[null,null,null,null,null,null,null,"Select from Pull Down",null,"Select from Pull Down"]
[null,null,null,null,null,null,null,"Select from Pull Down",null,"Select from Pull Down"]
[null,null,null,null,null,null,null,"Select from Pull Down",null,"Select from Pull Down"]
[null,null,null,null,null,null,null,"Select from Pull Down",null,"Select from Pull Down"]
[null,null,null,null,null,null,null,"Select from Pull Down",null,"Select from Pull Down"]
[null,null,null,null,null,null,null,"Select from Pull Down",null,"Select from Pull Down"]
[null,null,null,null,null,null,null,"Select from Pull Down",null,"Select from Pull Down"]
[null,null,null,null,null,null,null,"Select from Pull Down",null,"Select from Pull Down"]
[null,null,null,null,null,null,null,"Select from Pull Down",null,"Select from Pull Down"]
[null,null,null,null,null,null,null,"Select from Pull Down",null,"Select from Pull Down"]
[null,null,null,null,null,null,null,"Select from Pull Down",null,"Select from Pull Down"]
[null,null,null,null,null,null,null,"Select from Pull Down",null,"Select from Pull Down"]
[null,null,null,null,null,null,null,"Select from Pull Down",null,"Select from Pull Down"]
[null,null,null,null,null,null,null,"Select from Pull Down",null,"Select from Pull Down"]
[null,null,null,null,null,null,null,"Select from Pull Down",null,"Select from Pull Down"]
[null,null,null,null,null,null,null,"Select from Pull Down",null,"Select from Pull Down"]
[null,null,null,null,null,null,null,"Select from Pull Down",null,"Select from Pull Down"]
[null,null,null,null,null,null,null,"Select from Pull Down",null,"Select from Pull Down"]
[null,null,null,null,null,null,null,"Select from Pull Down",null,"Select from Pull Down"]
[null,null,null,null,null,null,null,"Select from Pull Down",null,"Select from Pull Down"]
[null,null,null,null,null,null,null,"Select from Pull Down",null,"Select from Pull Down"]
[null,null,null,null,null,null,null,"Select from Pull Down",null,"Select from Pull Down"]
[null,null,null,null,null,null,null,"Select from Pull Down",null,"Select from Pull Down"]
[null,null,null,null,null,null,null,"Select from Pull Down",null,"Select from Pull Down"]
[null,null,null,null,null,null,null,"Select from Pull Down",null,"Select from Pull Down"]
[null,null,null,null,null,null,null,"Select from Pull Down",null,"Select from Pull Down"]
[null,null,null,null,null,null,null,"Select from Pull Down",null,"Select from Pull Down"]
[null,null,null,null,null,null,null,"Select from Pull Down",null,"Select from Pull Down"]
[null,null,null,null,null,null,null,"Select from Pull Down",null,"Select from Pull Down"]
[null,null,null,null,null,null,null,"Select from Pull Down",null,"Select from Pull Down"]
[null,null,null,null,null,null,null,"Select from Pull Down",null,"Select from Pull Down"]
[null,null,null,null,null,null,null,"Select from Pull Down",null,"Select from Pull Down"]
[null,null,null,null,null,null,null,"Select from Pull Down",null,"Select from Pull Down"]
[null,null,null,null,null,null,null,"Select from Pull Down",null,"Select from Pull Down"]
[null,null,null,null,null,null,null,"Select from Pull Down",null,"Select from Pull Down"]
[null,null,null,null,null,null,null,"Select from Pull Down",null,"Select from Pull Down"]
[null,null,null,null,null,null,null,"Select from Pull Down",null,"Select from Pull Down"]
[null,null,null,null,null,null,null,"Select from Pull Down",null,"Select from Pull Down"]
[null,null,null,null,null,null,null,"Select from Pull Down",null,"Select from Pull Down"]
[null,null,null,null,null,null,null,"Select from Pull Down",null,"Select from Pull Down"]
[null,null,null,null,null,null,null,"Select from Pull Down",null,"Select from Pull Down"]
[null,null,null,null,null,null,null,"Select from Pull Down",null,"Select from Pull Down"]
[null,null,null,null,null,null,null,"Select from Pull Down",null,"Select from Pull Down"]
[null,null,null,null,null,null,null,"Select from Pull Down",null,"Select from Pull Down"]
[null,null,null,null,null,null,null,"Select from Pull Down",null,"Select from Pull Down"]
[null,null,null,null,null,null,null,"Select from Pull Down",null,"Select from Pull Down"]
[null,null,null,null,null,null,null,"Select from Pull Down",null,"Select from Pull Down"]
[null,null,null,null,null,null,null,"Select from Pull Down",null,"Select from Pull Down"]
[null,null,null,null,null,null,null,"Select from Pull Down",null,"Select from Pull Down"]
[null,null,null,null,null,null,null,"Select from Pull Down",null,"Select from Pull Down"]
[null,null,null,null,null,null,null,"Select from Pull Down",null,"Select from Pull Down"]
[null,null,null,null,null,null,null,"Select from Pull Down",null,"Select from Pull Down"]
[null,null,null,null,null,null,null,"Select from Pull Down",null,"Select from Pull Down"]
[null,null,null,null,null,null,null,"Select from Pull Down",null,"Select from Pull Down"]
[null,null,null,null,null,null,null,"Select from Pull Down",null,"Select from Pull Down"]
[null,null,null,null,null,null,null,"Select from Pull Down",null,"Select from Pull Down"]
[null,null,null,null,null,null,null,"Select from Pull Down",null,"Select from Pull Down"]
[null,null,null,null,null,null,null,"Select from Pull Down",null,"Select from Pull Down"]
[null,null,null,null,null,null,null,"Select from Pull Down",null,"Select from Pull Down"]
[null,null,null,null,null,null,null,"Select from Pull Down",null,"Select from Pull Down"]
[null,null,null,null,null,null,null,"Select from Pull Down",null,"Select from Pull Down"]
[null,null,null,null,null,null,null,"Select from Pull Down",null,"Select from Pull Down"]
[null,null,null,null,null,null,null,"Select from Pull Down",null,"Select from Pull Down"]
[null,null,null,null,null,null,null,"Select from Pull Down",null,"Select from Pull Down"]
[null,null,null,null,null,null,null,"Select from Pull Down",null,"Select from Pull Down"]
[null,null,null,null,null,null,null,"Select from Pull Down",null,"Select from Pull Down"]
[null,null,null,null,null,null,null,"Select from Pull Down",null,"Select from Pull Down"]
[null,null,null,null,null,null,null,"Select from Pull Down",null,"Select from Pull Down"]
[null,null,null,null,null,null,null,"Select from Pull Down",null,"Select from Pull Down"]
[null,null,null,null,null,null,null,"Select from Pull Down",null,"Select from Pull Down"]
[null,null,null,null,null,null,null,"Select from Pull Down",null,"Select from Pull Down"]
[null,null,null,null,null,null,null,"Select from Pull Down",null,"Select from Pull Down"]
[null,null,null,null,null,null,null,"Select from Pull Down",null,"Select from Pull Down"]
[null,null,null,null,null,null,null,"Select from Pull Down",null,"Select from Pull Down"]
[null,null,null,null,null,null,null,"Select from Pull Down",null,"Select from Pull Down"]
[null,null,null,null,null,null,null,"Select from Pull Down",null,"Select from Pull Down"]
[null,null,null,null,null,null,null,"Select from Pull Down",null,"Select from Pull Down"]
[null,null,null,null,null,null,null,"Select from Pull Down",null,"Select from Pull Down"]
[null,null,null,null,null,null,null,"Select from Pull Down",null,"Select from Pull Down"]
[null,null,null,null,null,null,null,"Select from Pull Down",null,"Select from Pull Down"]
[null,null,null,null,null,null,null,"Select from Pull Down",null,"Select from Pull Down"]
[null,null,null,null,null,null,null,"Select from Pull Down",null,"Select from Pull Down"]
[null,null,null,null,null,null,null,"Select from Pull Down",null,"Select from Pull Down"]
[null,null,null,null,null,null,null,"Select from Pull Down",null,"Select from Pull Down"]
[null,null,null,null,null,null,null,"Select from Pull Down",null,"Select from Pull Down"]
[null,null,null,null,null,null,null,"Select from Pull Down",null,"Select from Pull Down"]
[null,null,null,null,null,null,null,"Select from Pull Down",null,"Select from Pull Down"]
[null,null,null,null,null,null,null,"Select from Pull Down",null,"Select from Pull Down"]
[null,null,null,null,null,null,null,"Select from Pull Down",null,"Select from Pull Down"]
[null,null,null,null,null,null,null,"Select from Pull Down",null,"Select from Pull Down"]
[null,null,null,null,null,null,null,"Select from Pull Down",null,"Select from Pull Down"]
[null,null,null,null,null,null,null,"Select from Pull Down",null,"Select from Pull Down"]
[null,null,null,null,null,null,null,"Select from Pull Down",null,"Select from Pull Down"]
[null,null,null,null,null,null,null,"Select from Pull Down",null,"Select from Pull Down"]
[null,null,null,null,null,null,null,"Select from Pull Down",null,"Select from Pull Down"]
[null,null,null,null,null,null,null,"Select from Pull Down",null,"Select from Pull Down"]
[null,null,null,null,null,null,null,"Select from Pull Down",null,"Select from Pull Down"]
[null,null,null,null,null,null,null,"Select from Pull Down",null,"Select from Pull Down"]
[null,null,null,null,null,null,null,"Select from Pull Down",null,"Select from Pull Down"]
[null,null,null,null,null,null,null,"Select from Pull Down",null,"Select from Pull Down"]
[null,null,null,null,null,null,null,"Select from Pull Down",null,"Select from Pull Down"]
[null,null,null,null,null,null,null,"Select from Pull Down",null,"Select from Pull Down"]
[null,null,null,null,null,null,null,"Select from Pull Down",null,"Select from Pull Down"]
[null,null,null,null,null,null,null,"Select from Pull Down",null,"Select from Pull Down"]
[null,null,null,null,null,null,null,"Select from Pull Down",null,"Select from Pull Down"]
[null,null,null,null,null,null,null,"Select from Pull Down",null,"Select from Pull Down"]
[null,null,null,null,null,null,null,"Select from Pull Down",null,"Select from Pull Down"]
[null,null,null,null,null,null,null,"Select from Pull Down",null,"Select from Pull Down"]
[null,null,null,null,null,null,null,"Select from Pull Down",null,"Select from Pull Down"]
[null,null,null,null,null,null,null,"Select from Pull Down",null,"Select from Pull Down"]
[null,null,null,null,null,null,null,"Select from Pull Down",null,"Select from Pull Down"]
[null,null,null,null,null,null,null,"Select from Pull Down",null,"Select from Pull Down"]
[null,null,null,null,null,null,null,"Select from Pull Down",null,"Select from Pull Down"]
[null,null,null,null,null,null,null,"Select from Pull Down",null,"Select from Pull Down"]
[null,null,null,null,null,null,null,"Select from Pull Down",null,"Select from Pull Down"]
[null,null,null,null,null,null,null,"Select from Pull Down",null,"Select from Pull Down"]
[null,null,null,null,null,null,null,"Select from Pull Down",null,"Select from Pull Down"]
[null,null,null,null,null,null,null,"Select from Pull Down",null,"Select from Pull Down"]
[null,null,null,null,null,null,null,"Select from Pull Down",null,"Select from Pull Down"]
[null,null,null,null,null,null,null,"Select from Pull Down",null,"Select from Pull Down"]
[null,null,null,null,null,null,null,"Select from Pull Down",null,"Select from Pull Down"]
[null,null,null,null,null,null,null,"Select from Pull Down",null,"Select from Pull Down"]
[null,null,null,null,null,null,null,"Select from Pull Down",null,"Select from Pull Down"]
[null,null,null,null,null,null,null,"Select from Pull Down",null,"Select from Pull Down"]
[null,null,null,null,null,null,null,"Select from Pull Down",null,"Select from Pull Down"]
[null,null,null,null,null,null,null,"Select from Pull Down",null,"Select from Pull Down"]
[null,null,null,null,null,null,null,"Select from Pull Down",null,"Select from Pull Down"]
[null,null,null,null,null,null,null,"Select from Pull Down",null,"Select from Pull Down"]
[null,null,null,null,null,null,null,"Select from Pull Down",null,"Select from Pull Down"]
[null,null,null,null,null,null,null,"Select from Pull Down",null,"Select from Pull Down"]
[null,null,null,null,null,null,null,"Select from Pull Down",null,"Select from Pull Down"]
[null,null,null,null,null,null,null,"Select from Pull Down",null,"Select from Pull Down"]
[null,null,null,null,null,null,null,"Select from Pull Down",null,"Select from Pull Down"]
[null,null,null,null,null,null,null,"Select from Pull Down",null,"Select from Pull Down"]
[null,null,null,null,null,null,null,"Select from Pull Down",null,"Select from Pull Down"]
[null,null,null,null,null,null,null,"Select from Pull Down",null,"Select from Pull Down"]
[null,null,null,null,null,null,null,"Select from Pull Down",null,"Select from Pull Down"]
[null,null,null,null,null,null,null,"Select from Pull Down",null,"Select from Pull Down"]
[null,null,null,null,null,null,null,"Select from Pull Down",null,"Select from Pull Down"]
[null,null,null,null,null,null,null,"Select from Pull Down",null,"Select from Pull Down"]
[null,null,null,null,null,null,null,"Select from Pull Down",null,"Select from Pull Down"]
[null,null,null,null,null,null,null,"Select from Pull Down",null,"Select from Pull Down"]
[null,null,null,null,null,null,null,"Select from Pull Down",null,"Select from Pull Down"]
[null,null,null,null,null,null,null,"Select from Pull Down",null,"Select from Pull Down"]
[null,null,null,null,null,null,null,"Select from Pull Down",null,"Select from Pull Down"]
[null,null,null,null,null,null,null,"Select from Pull Down",null,"Select from Pull Down"]
[null,null,null,null,null,null,null,"Select from Pull Down",null,"Select from Pull Down"]
[null,null,null,null,null,null,null,"Select from Pull Down",null,"Select from Pull Down"]
[null,null,null,null,null,null,null,"Select from Pull Down",null,"Select from Pull Down"]
[null,null,null,null,null,null,null,"Select from Pull Down",null,"Select from Pull Down"]
[null,null,null,null,null,null,null,"Select from Pull Down",null,"Select from Pull Down"]
[null,null,null,null,null,null,null,"Select from Pull Down",null,"Select from Pull Down"]
[null,null,null,null,null,null,null,"Select from Pull Down",null,"Select from Pull Down"]
[null,null,null,null,null,null,null,"Select from Pull Down",null,"Select from Pull Down"]
[null,null,null,null,null,null,null,"Select from Pull Down",null,"Select from Pull Down"]
[null,null,null,null,null,null,null,"Select from Pull Down",null,"Select from Pull Down"]
[null,null,null,null,null,null,null,"Select from Pull Down",null,"Select from Pull Down"]
[null,null,null,null,null,null,null,"Select from Pull Down",null,"Select from Pull Down"]
[null,null,null,null,null,null,null,"Select from Pull Down",null,"Select from Pull Down"]
[null,null,null,null,null,null,null,"Select from Pull Down",null,"Select from Pull Down"]
[null,null,null,null,null,null,null,"Select from Pull Down",null,"Select from Pull Down"]
[null,null,null,null,null,null,null,"Select from Pull Down",null,"Select from Pull Down"]
[null,null,null,null,null,null,null,"Select from Pull Down",null,"Select from Pull Down"]
[null,null,null,null,null,null,null,"Select from Pull Down",null,"Select from Pull Down"]
[null,null,null,null,null,null,null,"Select from Pull Down",null,"Select from Pull Down"]
[null,null,null,null,null,null,null,"Select from Pull Down",null,"Select from Pull Down"]
[null,null,null,null,null,null,null,"Select from Pull Down",null,"Select from Pull Down"]
[null,null,null,null,null,null,null,"Select from Pull Down",null,"Select from Pull Down"]
[null,null,null,null,null,null,null,"Select from Pull Down",null,"Select from Pull Down"]
[null,null,null,null,null,null,null,"Select from Pull Down",null,"Select from Pull Down"]
[null,null,null,null,null,null,null,"Select from Pull Down",null,"Select from Pull Down"]
[null,null,null,null,null,null,null,"Select from Pull Down",null,"Select from Pull Down"]
[null,null,null,null,null,null,null,"Select from Pull Down",null,"Select from Pull Down"]
[null,null,null,null,null,null,null,"Select from Pull Down",null,"Select from Pull Down"]
[null,null,null,null,null,null,null,"Select from Pull Down",null,"Select from Pull Down"]
[null,null,null,null,null,null,null,"Select from Pull Down",null,"Select from Pull Down"]
[null,null,null,null,null,null,null,"Select from Pull Down",null,"Select from Pull Down"]
[null,null,null,null,null,null,null,"Select from Pull Down",null,"Select from Pull Down"]
[null,null,null,null,null,null,null,"Select from Pull Down",null,"Select from Pull Down"]
[null,null,null,null,null,null,null,"Select from Pull Down",null,"Select from Pull Down"]
[null,null,null,null,null,null,null,"Select from Pull Down",null,"Select from Pull Down"]
[null,null,null,null,null,null,null,"Select from Pull Down",null,"Select from Pull Down"]
[null,null,null,null,null,null,null,"Select from Pull Down",null,"Select from Pull Down"]
[null,null,null,null,null,null,null,"Select from Pull Down",null,"Select from Pull Down"]
[null,null,null,null,null,null,null,"Select from Pull Down",null,"Select from Pull Down"]
[null,null,null,null,null,null,null,"Select from Pull Down",null,"Select from Pull Down"]
[null,null,null,null,null,null,null,"Select from Pull Down",null,"Select from Pull Down"]
[null,null,null,null,null,null,null,"Select from Pull Down",null,"Select from Pull Down"]
[null,null,null,null,null,null,null,"Select from Pull Down",null,"Select from Pull Down"]
[null,null,null,null,null,null,null,"Select from Pull Down",null,"Select from Pull Down"]
[null,null,null,null,null,null,null,"Select from Pull Down",null,"Select from Pull Down"]
[null,null,null,null,null,null,null,"Select from Pull Down",null,"Select from Pull Down"]
[null,null,null,null,null,null,null,"Select from Pull Down",null,"Select from Pull Down"]
[null,null,null,null,null,null,null,"Select from Pull Down",null,"Select from Pull Down"]
[null,null,null,null,null,null,null,"Select from Pull Down",null,"Select from Pull Down"]
[null,null,null,null,null,null,null,"Select from Pull Down",null,"Select from Pull Down"]
[null,null,null,null,null,null,null,"Select from Pull Down",null,"Select from Pull Down"]
[null,null,null,null,null,null,null,"Select from Pull Down",null,"Select from Pull Down"]
[null,null,null,null,null,null,null,"Select from Pull Down",null,"Select from Pull Down"]
[null,null,null,null,null,null,null,"Select from Pull Down",null,"Select from Pull Down"]
[null,null,null,null,null,null,null,"Select from Pull Down",null,"Select from Pull Down"]
[null,null,null,null,null,null,null,"Select from Pull Down",null,"Select from Pull Down"]
[null,null,null,null,null,null,null,"Select from Pull Down",null,"Select from Pull Down"]
[null,null,null,null,null,null,null,"Select from Pull Down",null,"Select from Pull Down"]
[null,null,null,null,null,null,null,"Select from Pull Down",null,"Select from Pull Down"]
[null,null,null,null,null,null,null,"Select from Pull Down",null,"Select from Pull Down"]
[null,null,null,null,null,null,null,"Select from Pull Down",null,"Select from Pull Down"]
[null,null,null,null,null,null,null,"Select from Pull Down",null,"Select from Pull Down"]
[null,null,null,null,null,null,null,"Select from Pull Down",null,"Select from Pull Down"]
[null,null,null,null,null,null,null,"Select from Pull Down",null,"Select from Pull Down"]
[null,null,null,null,null,null,null,"Select from Pull Down",null,"Select from Pull Down"]
[null,null,null,null,null,null,null,"Select from Pull Down",null,"Select from Pull Down"]
[null,null,null,null,null,null,null,"Select from Pull Down",null,"Select from Pull Down"]
[null,null,null,null,null,null,null,"Select from Pull Down",null,"Select from Pull Down"]
[null,null,null,null,null,null,null,"Select from Pull Down",null,"Select from Pull Down"]
[null,null,null,null,null,null,null,"Select from Pull Down",null,"Select from Pull Down"]
[null,null,null,null,null,null,null,"Select from Pull Down",null,"Select from Pull Down"]
[null,null,null,null,null,null,null,"Select from Pull Down",null,"Select from Pull Down"]
[null,null,null,null,null,null,null,"Select from Pull Down",null,"Select from Pull Down"]
[null,null,null,null,null,null,null,"Select from Pull Down",null,"Select from Pull Down"]
[null,null,null,null,null,null,null,"Select from Pull Down",null,"Select from Pull Down"]
[null,null,null,null,null,null,null,"Select from Pull Down",null,"Select from Pull Down"]
[null,null,null,null,null,null,null,"Select from Pull Down",null,"Select from Pull Down"]
[null,null,null,null,null,null,null,"Select from Pull Down",null,"Select from Pull Down"]
[null,null,null,null,null,null,null,"Select from Pull Down",null,"Select from Pull Down"]
[null,null,null,null,null,null,null,"Select from Pull Down",null,"Select from Pull Down"]
[null,null,null,null,null,null,null,"Select from Pull Down",null,"Select from Pull Down"]
[null,null,null,null,null,null,null,"Select from Pull Down",null,"Select from Pull Down"]
[null,null,null,null,null,null,null,"Select from Pull Down",null,"Select from Pull Down"]
[null,null,null,null,null,null,null,"Select from Pull Down",null,"Select from Pull Down"]
[null,null,null,null,null,null,null,"Select from Pull Down",null,"Select from Pull Down"]
[null,null,null,null,null,null,null,"Select from Pull Down",null,"Select from Pull Down"]
[null,null,null,null,null,null,null,"Select from Pull Down",null,"Select from Pull Down"]
[null,null,null,null,null,null,null,"Select from Pull Down",null,"Select from Pull Down"]
[null,null,null,null,null,null,null,"Select from Pull Down",null,"Select from Pull Down"]
[null,null,null,null,null,null,null,"Select from Pull Down",null,"Select from Pull Down"]
[null,null,null,null,null,null,null,"Select from Pull Down",null,"Select from Pull Down"]
[null,null,null,null,null,null,null,"Select from Pull Down",null,"Select from Pull Down"]
[null,null,null,null,null,null,null,"Select from Pull Down",null,"Select from Pull Down"]
[null,null,null,null,null,null,null,"Select from Pull Down",null,"Select from Pull Down"]
[null,null,null,null,null,null,null,"Select from Pull Down",null,"Select from Pull Down"]
[null,null,null,null,null,null,null,"Select from Pull Down",null,"Select from Pull Down"]
[null,null,null,null,null,null,null,"Select from Pull Down",null,"Select from Pull Down"]
[null,null,null,null,null,null,null,"Select from Pull Down",null,"Select from Pull Down"]
[null,null,null,null,null,null,null,"Select from Pull Down",null,"Select from Pull Down"]
[null,null,null,null,null,null,null,"Select from Pull Down",null,"Select from Pull Down"]
[null,null,null,null,null,null,null,"Select from Pull Down",null,"Select from Pull Down"]
[null,null,null,null,null,null,null,"Select from Pull Down",null,"Select from Pull Down"]
[null,null,null,null,null,null,null,"Select from Pull Down",null,"Select from Pull Down"]
[null,null,null,null,null,null,null,"Select from Pull Down",null,"Select from Pull Down"]
[null,null,null,null,null,null,null,"Select from Pull Down",null,"Select from Pull Down"]
[null,null,null,null,null,null,null,"Select from Pull Down",null,"Select from Pull Down"]
[null,null,null,null,null,null,null,"Select from Pull Down",null,"Select from Pull Down"]
[null,null,null,null,null,null,null,"Select from Pull Down",null,"Select from Pull Down"]
[null,null,null,null,null,null,null,"Select from Pull Down",null,"Select from Pull Down"]
[null,null,null,null,null,null,null,"Select from Pull Down",null,"Select from Pull Down"]
[null,null,null,null,null,null,null,"Select from Pull Down",null,"Select from Pull Down"]
[null,null,null,null,null,null,null,"Select from Pull Down",null,"Select from Pull Down"]
[null,null,null,null,null,null,null,"Select from Pull Down",null,"Select from Pull Down"]
[null,null,null,null,null,null,null,"Select from Pull Down",null,"Select from Pull Down"]
[null,null,null,null,null,null,null,"Select from Pull Down",null,"Select from Pull Down"]
[null,null,null,null,null,null,null,"Select from Pull Down",null,"Select from Pull Down"]
[null,null,null,null,null,null,null,"Select from Pull Down",null,"Select from Pull Down"]
[null,null,null,null,null,null,null,"Select from Pull Down",null,"Select from Pull Down"]
[null,null,null,null,null,null,null,"Select from Pull Down",null,"Select from Pull Down"]
[null,null,null,null,null,null,null,"Select from Pull Down",null,"Select from Pull Down"]
[null,null,null,null,null,null,null,"Select from Pull Down",null,"Select from Pull Down"]
[null,null,null,null,null,null,null,"Select from Pull Down",null,"Select from Pull Down"]
[null,null,null,null,null,null,null,"Select from Pull Down",null,"Select from Pull Down"]
[null,null,null,null,null,null,null,"Select from Pull Down",null,"Select from Pull Down"]
[null,null,null,null,null,null,null,"Select from Pull Down",null,"Select from Pull Down"]
[null,null,null,null,null,null,null,"Select from Pull Down",null,"Select from Pull Down"]
[null,null,null,null,null,null,null,"Select from Pull Down",null,"Select from Pull Down"]
[null,null,null,null,null,null,null,"Select from Pull Down",null,"Select from Pull Down"]
[null,null,null,null,null,null,null,"Select from Pull Down",null,"Select from Pull Down"]
[null,null,null,null,null,null,null,"Select from Pull Down",null,"Select from Pull Down"]
[null,null,null,null,null,null,null,"Select from Pull Down",null,"Select from Pull Down"]
[null,null,null,null,null,null,null,"Select from Pull Down",null,"Select from Pull Down"]
[null,null,null,null,null,null,null,"Select from Pull Down",null,"Select from Pull Down"]
[null,null,null,null,null,null,null,"Select from Pull Down",null,"Select from Pull Down"]
[null,null,null,null,null,null,null,"Select from Pull Down",null,"Select from Pull Down"]
[null,null,null,null,null,null,null,"Select from Pull Down",null,"Select from Pull Down"]
[null,null,null,null,null,null,null,"Select from Pull Down",null,"Select from Pull Down"]
[null,null,null,null,null,null,null,"Select from Pull Down",null,"Select from Pull Down"]
[null,null,null,null,null,null,null,"Select from Pull Down",null,"Select from Pull Down"]
[null,null,null,null,null,null,null,"Select from Pull Down",null,"Select from Pull Down"]
[null,null,null,null,null,null,null,"Select from Pull Down",null,"Select from Pull Down"]
[null,null,null,null,null,null,null,"Select from Pull Down",null,"Select from Pull Down"]
[null,null,null,null,null,null,null,"Select from Pull Down",null,"Select from Pull Down"]
[null,null,null,null,null,null,null,"Select from Pull Down",null,"Select from Pull Down"]
[null,null,null,null,null,null,null,"Select from Pull Down",null,"Select from Pull Down"]
[null,null,null,null,null,null,null,"Select from Pull Down",null,"Select from Pull Down"]
[null,null,null,null,null,null,null,"Select from Pull Down",null,"Select from Pull Down"]
[null,null,null,null,null,null,null,"Select from Pull Down",null,"Select from Pull Down"]
[null,null,null,null,null,null,null,"Select from Pull Down",null,"Select from Pull Down"]
[null,null,null,null,null,null,null,"Select from Pull Down",null,"Select from Pull Down"]
[null,null,null,null,null,null,null,"Select from Pull Down",null,"Select from Pull Down"]
[null,null,null,null,null,null,null,"Select from Pull Down",null,"Select from Pull Down"]
[null,null,null,null,null,null,null,"Select from Pull Down",null,"Select from Pull Down"]
[null,null,null,null,null,null,null,"Select from Pull Down",null,"Select from Pull Down"]
[null,null,null,null,null,null,null,"Select from Pull Down",null,"Select from Pull Down"]
[null,null,null,null,null,null,null,"Select from Pull Down",null,"Select from Pull Down"]
[null,null,null,null,null,null,null,"Select from Pull Down",null,"Select from Pull Down"]
[null,null,null,null,null,null,null,"Select from Pull Down",null,"Select from Pull Down"]
[null,null,null,null,null,null,null,"Select from Pull Down",null,"Select from Pull Down"]
[null,null,null,null,null,null,null,"Select from Pull Down",null,"Select from Pull Down"]
[null,null,null,null,null,null,null,"Select from Pull Down",null,"Select from Pull Down"]
[null,null,null,null,null,null,null,"Select from Pull Down",null,"Select from Pull Down"]
[null,null,null,null,null,null,null,"Select from Pull Down",null,"Select from Pull Down"]
[null,null,null,null,null,null,null,"Select from Pull Down",null,"Select from Pull Down"]
[null,null,null,null,null,null,null,"Select from Pull Down",null,"Select from Pull Down"]
[null,null,null,null,null,null,null,"Select from Pull Down",null,"Select from Pull Down"]
[null,null,null,null,null,null,null,"Select from Pull Down",null,"Select from Pull Down"]
[null,null,null,null,null,null,null,"Select from Pull Down",null,"Select from Pull Down"]
[null,null,null,null,null,null,null,"Select from Pull Down",null,"Select from Pull Down"]
[null,null,null,null,null,null,null,"Select from Pull Down",null,"Select from Pull Down"]
[null,null,null,null,null,null,null,"Select from Pull Down",null,"Select from Pull Down"]
[null,null,null,null,null,null,null,"Select from Pull Down",null,"Select from Pull Down"]
[null,null,null,null,null,null,null,"Select from Pull Down",null,"Select from Pull Down"]
[null,null,null,null,null,null,null,"Select from Pull Down",null,"Select from Pull Down"]
[null,null,null,null,null,null,null,"Select from Pull Down",null,"Select from Pull Down"]
[null,null,null,null,null,null,null,"Select from Pull Down",null,"Select from Pull Down"]
[null,null,null,null,null,null,null,"Select from Pull Down",null,"Select from Pull Down"]
[null,null,null,null,null,null,null,"Select from Pull Down",null,"Select from Pull Down"]
[null,null,null,null,null,null,null,"Select from Pull Down",null,"Select from Pull Down"]
[null,null,null,null,null,null,null,"Select from Pull Down",null,"Select from Pull Down"]
[null,null,null,null,null,null,null,"Select from Pull Down",null,"Select from Pull Down"]
[null,null,null,null,null,null,null,"Select from Pull Down",null,"Select from Pull Down"]
[null,null,null,null,null,null,null,"Select from Pull Down",null,"Select from Pull Down"]
[null,null,null,null,null,null,null,"Select from Pull Down",null,"Select from Pull Down"]
[null,null,null,null,null,null,null,"Select from Pull Down",null,"Select from Pull Down"]
[null,null,null,null,null,null,null,"Select from Pull Down",null,"Select from Pull Down"]
[null,null,null,null,null,null,null,"Select from Pull Down",null,"Select from Pull Down"]
[null,null,null,null,null,null,null,"Select from Pull Down",null,"Select from Pull Down"]
[null,null,null,null,null,null,null,"Select from Pull Down",null,"Select from Pull Down"]
[null,null,null,null,null,null,null,"Select from Pull Down",null,"Select from Pull Down"]
[null,null,null,null,null,null,null,"Select from Pull Down",null,"Select from Pull Down"]
[null,null,null,null,null,null,null,"Select from Pull Down",null,"Select from Pull Down"]
[null,null,null,null,null,null,null,"Select from Pull Down",null,"Select from Pull Down"]
[null,null,null,null,null,null,null,"Select from Pull Down",null,"Select from Pull Down"]
[null,null,null,null,null,null,null,"Select from Pull Down",null,"Select from Pull Down"]
[null,null,null,null,null,null,null,"Select from Pull Down",null,"Select from Pull Down"]
[null,null,null,null,null,null,null,"Select from Pull Down",null,"Select from Pull Down"]
[null,null,null,null,null,null,null,"Select from Pull Down",null,"Select from Pull Down"]
[null,null,null,null,null,null,null,"Select from Pull Down",null,"Select from Pull Down"]
[null,null,null,null,null,null,null,"Select from Pull Down",null,"Select from Pull Down"]
[null,null,null,null,null,null,null,"Select from Pull Down",null,"Select from Pull Down"]
[null,null,null,null,null,null,null,"Select from Pull Down",null,"Select from Pull Down"]
[null,null,null,null,null,null,null,"Select from Pull Down",null,"Select from Pull Down"]
[null,null,null,null,null,null,null,"Select from Pull Down",null,"Select from Pull Down"]
[null,null,null,null,null,null,null,"Select from Pull Down",null,"Select from Pull Down"]
[null,null,null,null,null,null,null,"Select from Pull Down",null,"Select from Pull Down"]
[null,null,null,null,null,null,null,"Select from Pull Down",null,"Select from Pull Down"]
[null,null,null,null,null,null,null,"Select from Pull Down",null,"Select from Pull Down"]
[null,null,null,null,null,null,null,"Select from Pull Down",null,"Select from Pull Down"]
[null,null,null,null,null,null,null,"Select from Pull Down",null,"Select from Pull Down"]
[null,null,null,null,null,null,null,"Select from Pull Down",null,"Select from Pull Down"]
[null,null,null,null,null,null,null,"Select from Pull Down",null,"Select from Pull Down"]
[null,null,null,null,null,null,null,"Select from Pull Down",null,"Select from Pull Down"]
[null,null,null,null,null,null,null,"Select from Pull Down",null,"Select from Pull Down"]
[null,null,null,null,null,null,null,"Select from Pull Down",null,"Select from Pull Down"]
[null,null,null,null,null,null,null,"Select from Pull Down",null,"Select from Pull Down"]
[null,null,null,null,null,null,null,"Select from Pull Down",null,"Select from Pull Down"]
[null,null,null,null,null,null,null,"Select from Pull Down",null,"Select from Pull Down"]
[null,null,null,null,null,null,null,"Select from Pull Down",null,"Select from Pull Down"]
[null,null,null,null,null,null,null,"Select from Pull Down",null,"Select from Pull Down"]
[null,null,null,null,null,null,null,"Select from Pull Down",null,"Select from Pull Down"]
[null,null,null,null,null,null,null,"Select from Pull Down",null,"Select from Pull Down"]
[null,null,null,null,null,null,null,"Select from Pull Down",null,"Select from Pull Down"]
[null,null,null,null,null,null,null,"Select from Pull Down",null,"Select from Pull Down"]
[null,null,null,null,null,null,null,"Select from Pull Down",null,"Select from Pull Down"]
[null,null,null,null,null,null,null,"Select from Pull Down",null,"Select from Pull Down"]
[null,null,null,null,null,null,null,"Select from Pull Down",null,"Select from Pull Down"]
[null,null,null,null,null,null,null,"Select from Pull Down",null,"Select from Pull Down"]
[null,null,null,null,null,null,null,"Select from Pull Down",null,"Select from Pull Down"]
[null,null,null,null,null,null,null,"Select from Pull Down",null,"Select from Pull Down"]
[null,null,null,null,null,null,null,"Select from Pull Down",null,"Select from Pull Down"]
[null,null,null,null,null,null,null,"Select from Pull Down",null,"Select from Pull Down"]
[null,null,null,null,null,null,null,"Select from Pull Down",null,"Select from Pull Down"]
[null,null,null,null,null,null,null,"Select from Pull Down",null,"Select from Pull Down"]
[null,null,null,null,null,null,null,"Select from Pull Down",null,"Select from Pull Down"]
[null,null,null,null,null,null,null,"Select from Pull Down",null,"Select from Pull Down"]
[null,null,null,null,null,null,null,"Select from Pull Down",null,"Select from Pull Down"]
[null,null,null,null,null,null,null,"Select from Pull Down",null,"Select from Pull Down"]
[null,null,null,null,null,null,null,"Select from Pull Down",null,"Select from Pull Down"]
[null,null,null,null,null,null,null,"Select from Pull Down",null,"Select from Pull Down"]
[null,null,null,null,null,null,null,"Select from Pull Down",null,"Select from Pull Down"]
[null,null,null,null,null,null,null,"Select from Pull Down",null,"Select from Pull Down"]
[null,null,null,null,null,null,null,"Select from Pull Down",null,"Select from Pull Down"]
[null,null,null,null,null,null,null,"Select from Pull Down",null,"Select from Pull Down"]
[null,null,null,null,null,null,null,"Select from Pull Down",null,"Select from Pull Down"]
[null,null,null,null,null,null,null,"Select from Pull Down",null,"Select from Pull Down"]
[null,null,null,null,null,null,null,"Select from Pull Down",null,"Select from Pull Down"]
[null,null,null,null,null,null,null,"Select from Pull Down",null,"Select from Pull Down"]
[null,null,null,null,null,null,null,"Select from Pull Down",null,"Select from Pull Down"]
[null,null,null,null,null,null,null,"Select from Pull Down",null,"Select from Pull Down"]
[null,null,null,null,null,null,null,"Select from Pull Down",null,"Select from Pull Down"]
[null,null,null,null,null,null,null,"Select from Pull Down",null,"Select from Pull Down"]
[null,null,null,null,null,null,null,"Select from Pull Down",null,"Select from Pull Down"]
[null,null,null,null,null,null,null,"Select from Pull Down",null,"Select from Pull Down"]
[null,null,null,null,null,null,null,"Select from Pull Down",null,"Select from Pull Down"]
[null,null,null,null,null,null,null,"Select from Pull Down",null,"Select from Pull Down"]
[null,null,null,null,null,null,null,"Select from Pull Down",null,"Select from Pull Down"]
[null,null,null,null,null,null,null,"Select from Pull Down",null,"Select from Pull Down"]
[null,null,null,null,null,null,null,"Select from Pull Down",null,"Select from Pull Down"]
[null,null,null,null,null,null,null,"Select from Pull Down",null,"Select from Pull Down"]
[null,null,null,null,null,null,null,"Select from Pull Down",null,"Select from Pull Down"]
[null,null,null,null,null,null,null,"Select from Pull Down",null,"Select from Pull Down"]
[null,null,null,null,null,null,null,"Select from Pull Down",null,"Select from Pull Down"]
[null,null,null,null,null,null,null,"Select from Pull Down",null,"Select from Pull Down"]
[null,null,null,null,null,null,null,"Select from Pull Down",null,"Select from Pull Down"]
[null,null,null,null,null,null,null,"Select from Pull Down",null,"Select from Pull Down"]
[null,null,null,null,null,null,null,"Select from Pull Down",null,"Select from Pull Down"]
[null,null,null,null,null,null,null,"Select from Pull Down",null,"Select from Pull Down"]
[null,null,null,null,null,null,null,"Select from Pull Down",null,"Select from Pull Down"]
[null,null,null,null,null,null,null,"Select from Pull Down",null,"Select from Pull Down"]
[null,null,null,null,null,null,null,"Select from Pull Down",null,"Select from Pull Down"]
[null,null,null,null,null,null,null,"Select from Pull Down",null,"Select from Pull Down"]
[null,null,null,null,null,null,null,"Select from Pull Down",null,"Select from Pull Down"]
[null,null,null,null,null,null,null,"Select from Pull Down",null,"Select from Pull Down"]
[null,null,null,null,null,null,null,"Select from Pull Down",null,"Select from Pull Down"]
[null,null,null,null,null,null,null,"Select from Pull Down",null,"Select from Pull Down"]
[null,null,null,null,null,null,null,"Select from Pull Down",null,"Select from Pull Down"]
[null,null,null,null,null,null,null,"Select from Pull Down",null,"Select from Pull Down"]
[null,null,null,null,null,null,null,"Select from Pull Down",null,"Select from Pull Down"]
[null,null,null,null,null,null,null,"Select from Pull Down",null,"Select from Pull Down"]
[null,null,null,null,null,null,null,"Select from Pull Down",null,"Select from Pull Down"]
[null,null,null,null,null,null,null,"Select from Pull Down",null,"Select from Pull Down"]
[null,null,null,null,null,null,null,"Select from Pull Down",null,"Select from Pull Down"]
[null,null,null,null,null,null,null,"Select from Pull Down",null,"Select from Pull Down"]
[null,null,null,null,null,null,null,"Select from Pull Down",null,"Select from Pull Down"]
[null,null,null,null,null,null,null,"Select from Pull Down",null,"Select from Pull Down"]
[null,null,null,null,null,null,null,"Select from Pull Down",null,"Select from Pull Down"]
[null,null,null,null,null,null,null,"Select from Pull Down",null,"Select from Pull Down"]
[null,null,null,null,null,null,null,"Select from Pull Down",null,"Select from Pull Down"]
[null,null,null,null,null,null,null,"Select from Pull Down",null,"Select from Pull Down"]
[null,null,null,null,null,null,null,"Select from Pull Down",null,"Select from Pull Down"]
[null,null,null,null,null,null,null,"Select from Pull Down",null,"Select from Pull Down"]
[null,null,null,null,null,null,null,"Select from Pull Down",null,"Select from Pull Down"]
[null,null,null,null,null,null,null,"Select from Pull Down",null,"Select from Pull Down"]
[null,null,null,null,null,null,null,"Select from Pull Down",null,"Select from Pull Down"]
[null,null,null,null,null,null,null,"Select from Pull Down",null,"Select from Pull Down"]
[null,null,null,null,null,null,null,"Select from Pull Down",null,"Select from Pull Down"]
[null,null,null,null,null,null,null,"Select from Pull Down",null,"Select from Pull Down"]
[null,null,null,null,null,null,null,"Select from Pull Down",null,"Select from Pull Down"]
[null,null,null,null,null,null,null,"Select from Pull Down",null,"Select from Pull Down"]
[null,null,null,null,null,null,null,"Select from Pull Down",null,"Select from Pull Down"]
[null,null,null,null,null,null,null,"Select from Pull Down",null,"Select from Pull Down"]
[null,null,null,null,null,null,null,"Select from Pull Down",null,"Select from Pull Down"]
[null,null,null,null,null,null,null,"Select from Pull Down",null,"Select from Pull Down"]
[null,null,null,null,null,null,null,"Select from Pull Down",null,"Select from Pull Down"]
[null,null,null,null,null,null,null,"Select from Pull Down",null,"Select from Pull Down"]
[null,null,null,null,null,null,null,"Select from Pull Down",null,"Select from Pull Down"]
[null,null,null,null,null,null,null,"Select from Pull Down",null,"Select from Pull Down"]
[null,null,null,null,null,null,null,"Select from Pull Down",null,"Select from Pull Down"]
[null,null,null,null,null,null,null,"Select from Pull Down",null,"Select from Pull Down"]
[null,null,null,null,null,null,null,"Select from Pull Down",null,"Select from Pull Down"]
[null,null,null,null,null,null,null,"Select from Pull Down",null,"Select from Pull Down"]
[null,null,null,null,null,null,null,"Select from Pull Down",null,"Select from Pull Down"]
[null,null,null,null,null,null,null,"Select from Pull Down",null,"Select from Pull Down"]
[null,null,null,null,null,null,null,"Select from Pull Down",null,"Select from Pull Down"]
[null,null,null,null,null,null,null,"Select from Pull Down",null,"Select from Pull Down"]
[null,null,null,null,null,null,null,"Select from Pull Down",null,"Select from Pull Down"]
[null,null,null,null,null,null,null,"Select from Pull Down",null,"Select from Pull Down"]
[null,null,null,null,null,null,null,"Select from Pull Down",null,"Select from Pull Down"]
[null,null,null,null,null,null,null,"Select from Pull Down",null,"Select from Pull Down"]
[null,null,null,null,null,null,null,"Select from Pull Down",null,"Select from Pull Down"]
[null,null,null,null,null,null,null,"Select from Pull Down",null,"Select from Pull Down"]
[null,null,null,null,null,null,null,"Select from Pull Down",null,"Select from Pull Down"]
[null,null,null,null,null,null,null,"Select from Pull Down",null,"Select from Pull Down"]
[null,null,null,null,null,null,null,"Select from Pull Down",null,"Select from Pull Down"]
[null,null,null,null,null,null,null,"Select from Pull Down",null,"Select from Pull Down"]
[null,null,null,null,null,null,null,"Select from Pull Down",null,"Select from Pull Down"]
[null,null,null,null,null,null,null,"Select from Pull Down",null,"Select from Pull Down"]
[null,null,null,null,null,null,null,"Select from Pull Down",null,"Select from Pull Down"]
[null,null,null,null,null,null,null,"Select from Pull Down",null,"Select from Pull Down"]
[null,null,null,null,null,null,null,"Select from Pull Down",null,"Select from Pull Down"]
[null,null,null,null,null,null,null,"Select from Pull Down",null,"Select from Pull Down"]
[null,null,null,null,null,null,null,"Select from Pull Down",null,"Select from Pull Down"]
[null,null,null,null,null,null,null,"Select from Pull Down",null,"Select from Pull Down"]
[null,null,null,null,null,null,null,"Select from Pull Down",null,"Select from Pull Down"]
[null,null,null,null,null,null,null,"Select from Pull Down",null,"Select from Pull Down"]
[null,null,null,null,null,null,null,"Select from Pull Down",null,"Select from Pull Down"]
[null,null,null,null,null,null,null,"Select from Pull Down",null,"Select from Pull Down"]
[null,null,null,null,null,null,null,"Select from Pull Down",null,"Select from Pull Down"]
[null,null,null,null,null,null,null,"Select from Pull Down",null,"Select from Pull Down"]
[null,null,null,null,null,null,null,"Select from Pull Down",null,"Select from Pull Down"]
[null,null,null,null,null,null,null,"Select from Pull Down",null,"Select from Pull Down"]
[null,null,null,null,null,null,null,"Select from Pull Down",null,"Select from Pull Down"]
[null,null,null,null,null,null,null,"Select from Pull Down",null,"Select from Pull Down"]
[null,null,null,null,null,null,null,"Select from Pull Down",null,"Select from Pull Down"]
[null,null,null,null,null,null,null,"Select from Pull Down",null,"Select from Pull Down"]
[null,null,null,null,null,null,null,"Select from Pull Down",null,"Select from Pull Down"]
[null,null,null,null,null,null,null,"Select from Pull Down",null,"Select from Pull Down"]
[null,null,null,null,null,null,null,"Select from Pull Down",null,"Select from Pull Down"]
[null,null,null,null,null,null,null,"Select from Pull Down",null,"Select from Pull Down"]
[null,null,null,null,null,null,null,"Select from Pull Down",null,"Select from Pull Down"]
[null,null,null,null,null,null,null,"Select from Pull Down",null,"Select from Pull Down"]
[null,null,null,null,null,null,null,"Select from Pull Down",null,"Select from Pull Down"]
[null,null,null,null,null,null,null,"Select from Pull Down",null,"Select from Pull Down"]
[null,null,null,null,null,null,null,"Select from Pull Down",null,"Select from Pull Down"]
[null,null,null,null,null,null,null,"Select from Pull Down",null,"Select from Pull Down"]
[null,null,null,null,null,null,null,"Select from Pull Down",null,"Select from Pull Down"]
[null,null,null,null,null,null,null,"Select from Pull Down",null,"Select from Pull Down"]
[null,null,null,null,null,null,null,"Select from Pull Down",null,"Select from Pull Down"]
[null,null,null,null,null,null,null,"Select from Pull Down",null,"Select from Pull Down"]
[null,null,null,null,null,null,null,"Select from Pull Down",null,"Select from Pull Down"]
[null,null,null,null,null,null,null,"Select from Pull Down",null,"Select from Pull Down"]
[null,null,null,null,null,null,null,"Select from Pull Down",null,"Select from Pull Down"]
[null,null,null,null,null,null,null,"Select from Pull Down",null,"Select from Pull Down"]
[null,null,null,null,null,null,null,"Select from Pull Down",null,"Select from Pull Down"]
[null,null,null,null,null,null,null,"Select from Pull Down",null,"Select from Pull Down"]
[null,null,null,null,null,null,null,"Select from Pull Down",null,"Select from Pull Down"]
[null,null,null,null,null,null,null,"Select from Pull Down",null,"Select from Pull Down"]
[null,null,null,null,null,null,null,"Select from Pull Down",null,"Select from Pull Down"]
[null,null,null,null,null,null,null,"Select from Pull Down",null,"Select from Pull Down"]
[null,null,null,null,null,null,null,"Select from Pull Down",null,"Select from Pull Down"]
[null,null,null,null,null,null,null,"Select from Pull Down",null,"Select from Pull Down"]
[null,null,null,null,null,null,null,"Select from Pull Down",null,"Select from Pull Down"]
[null,null,null,null,null,null,null,"Select from Pull Down",null,"Select from Pull Down"]
[null,null,null,null,null,null,null,"Select from Pull Down",null,"Select from Pull Down"]
[null,null,null,null,null,null,null,"Select from Pull Down",null,"Select from Pull Down"]
[null,null,null,null,null,null,null,"Select from Pull Down",null,"Select from Pull Down"]
[null,null,null,null,null,null,null,"Select from Pull Down",null,"Select from Pull Down"]
[null,null,null,null,null,null,null,"Select from Pull Down",null,"Select from Pull Down"]
[null,null,null,null,null,null,null,"Select from Pull Down",null,"Select from Pull Down"]
[null,null,null,null,null,null,null,"Select from Pull Down",null,"Select from Pull Down"]
[null,null,null,null,null,null,null,"Select from Pull Down",null,"Select from Pull Down"]
[null,null,null,null,null,null,null,"Select from Pull Down",null,"Select from Pull Down"]
[null,null,null,null,null,null,null,"Select from Pull Down",null,"Select from Pull Down"]
[null,null,null,null,null,null,null,"Select from Pull Down",null,"Select from Pull Down"]
[null,null,null,null,null,null,null,"Select from Pull Down",null,"Select from Pull Down"]
[null,null,null,null,null,null,null,"Select from Pull Down",null,"Select from Pull Down"]
[null,null,null,null,null,null,null,"Select from Pull Down",null,"Select from Pull Down"]
[null,null,null,null,null,null,null,"Select from Pull Down",null,"Select from Pull Down"]
[null,null,null,null,null,null,null,"Select from Pull Down",null,"Select from Pull Down"]
[null,null,null,null,null,null,null,"Select from Pull Down",null,"Select from Pull Down"]
[null,null,null,null,null,null,null,"Select from Pull Down",null,"Select from Pull Down"]
[null,null,null,null,null,null,null,"Select from Pull Down",null,"Select from Pull Down"]
[null,null,null,null,null,null,null,"Select from Pull Down",null,"Select from Pull Down"]
[null,null,null,null,null,null,null,"Select from Pull Down",null,"Select from Pull Down"]
[null,null,null,null,null,null,null,"Select from Pull Down",null,"Select from Pull Down"]
[null,null,null,null,null,null,null,"Select from Pull Down",null,"Select from Pull Down"]
[null,null,null,null,null,null,null,"Select from Pull Down",null,"Select from Pull Down"]
[null,null,null,null,null,null,null,"Select from Pull Down",null,"Select from Pull Down"]
[null,null,null,null,null,null,null,"Select from Pull Down",null,"Select from Pull Down"]
[null,null,null,null,null,null,null,"Select from Pull Down",null,"Select from Pull Down"]
[null,null,null,null,null,null,null,"Select from Pull Down",null,"Select from Pull Down"]
[null,null,null,null,null,null,null,"Select from Pull Down",null,"Select from Pull Down"]
[null,null,null,null,null,null,null,"Select from Pull Down",null,"Select from Pull Down"]
[null,null,null,null,null,null,null,"Select from Pull Down",null,"Select from Pull Down"]
[null,null,null,null,null,null,null,"Select from Pull Down",null,"Select from Pull Down"]
[null,null,null,null,null,null,null,"Select from Pull Down",null,"Select from Pull Down"]
[null,null,null,null,null,null,null,"Select from Pull Down",null,"Select from Pull Down"]
[null,null,null,null,null,null,null,"Select from Pull Down",null,"Select from Pull Down"]
[null,null,null,null,null,null,null,"Select from Pull Down",null,"Select from Pull Down"]
[null,null,null,null,null,null,null,"Select from Pull Down",null,"Select from Pull Down"]
[null,null,null,null,null,null,null,"Select from Pull Down",null,"Select from Pull Down"]
[null,null,null,null,null,null,null,"Select from Pull Down",null,"Select from Pull Down"]
[null,null,null,null,null,null,null,"Select from Pull Down",null,"Select from Pull Down"]
[null,null,null,null,null,null,null,"Select from Pull Down",null,"Select from Pull Down"]
[null,null,null,null,null,null,null,"Select from Pull Down",null,"Select from Pull Down"]
[null,null,null,null,null,null,null,"Select from Pull Down",null,"Select from Pull Down"]
[null,null,null,null,null,null,null,"Select from Pull Down",null,"Select from Pull Down"]
[null,null,null,null,null,null,null,"Select from Pull Down",null,"Select from Pull Down"]
[null,null,null,null,null,null,null,"Select from Pull Down",null,"Select from Pull Down"]
[null,null,null,null,null,null,null,"Select from Pull Down",null,"Select from Pull Down"]
[null,null,null,null,null,null,null,"Select from Pull Down",null,"Select from Pull Down"]
[null,null,null,null,null,null,null,"Select from Pull Down",null,"Select from Pull Down"]
[null,null,null,null,null,null,null,"Select from Pull Down",null,"Select from Pull Down"]
[null,null,null,null,null,null,null,"Select from Pull Down",null,"Select from Pull Down"]
[null,null,null,null,null,null,null,"Select from Pull Down",null,"Select from Pull Down"]
[null,null,null,null,null,null,null,"Select from Pull Down",null,"Select from Pull Down"]
[null,null,null,null,null,null,null,"Select from Pull Down",null,"Select from Pull Down"]
[null,null,null,null,null,null,null,"Select from Pull Down",null,"Select from Pull Down"]
[null,null,null,null,null,null,null,"Select from Pull Down",null,"Select from Pull Down"]
[null,null,null,null,null,null,null,"Select from Pull Down",null,"Select from Pull Down"]
[null,null,null,null,null,null,null,"Select from Pull Down",null,"Select from Pull Down"]
[null,null,null,null,null,null,null,"Select from Pull Down",null,"Select from Pull Down"]
[null,null,null,null,null,null,null,"Select from Pull Down",null,"Select from Pull Down"]
[null,null,null,null,null,null,null,"Select from Pull Down",null,"Select from Pull Down"]
[null,null,null,null,null,null,null,"Select from Pull Down",null,"Select from Pull Down"]
[null,null,null,null,null,null,null,"Select from Pull Down",null,"Select from Pull Down"]
[null,null,null,null,null,null,null,"Select from Pull Down",null,"Select from Pull Down"]
[null,null,null,null,null,null,null,"Select from Pull Down",null,"Select from Pull Down"]
[null,null,null,null,null,null,null,"Select from Pull Down",null,"Select from Pull Down"]
[null,null,null,null,null,null,null,"Select from Pull Down",null,"Select from Pull Down"]
[null,null,null,null,null,null,null,"Select from Pull Down",null,"Select from Pull Down"]
[null,null,null,null,null,null,null,"Select from Pull Down",null,"Select from Pull Down"]
[null,null,null,null,null,null,null,"Select from Pull Down",null,"Select from Pull Down"]
[null,null,null,null,null,null,null,"Select from Pull Down",null,"Select from Pull Down"]
[null,null,null,null,null,null,null,"Select from Pull Down",null,"Select from Pull Down"]
[null,null,null,null,null,null,null,"Select from Pull Down",null,"Select from Pull Down"]
[null,null,null,null,null,null,null,"Select from Pull Down",null,"Select from Pull Down"]
[null,null,null,null,null,null,null,"Select from Pull Down",null,"Select from Pull Down"]
[null,null,null,null,null,null,null,"Select from Pull Down",null,"Select from Pull Down"]
[null,null,null,null,null,null,null,"Select from Pull Down",null,"Select from Pull Down"]
[null,null,null,null,null,null,null,"Select from Pull Down",null,"Select from Pull Down"]
[null,null,null,null,null,null,null,"Select from Pull Down",null,"Select from Pull Down"]
[null,null,null,null,null,null,null,"Select from Pull Down",null,"Select from Pull Down"]
[null,null,null,null,null,null,null,"Select from Pull Down",null,"Select from Pull Down"]
[null,null,null,null,null,null,null,"Select from Pull Down",null,"Select from Pull Down"]
[null,null,null,null,null,null,null,"Select from Pull Down",null,"Select from Pull Down"]
[null,null,null,null,null,null,null,"Select from Pull Down",null,"Select from Pull Down"]
[null,null,null,null,null,null,null,"Select from Pull Down",null,"Select from Pull Down"]
[null,null,null,null,null,null,null,"Select from Pull Down",null,"Select from Pull Down"]
[null,null,null,null,null,null,null,"Select from Pull Down",null,"Select from Pull Down"]
[null,null,null,null,null,null,null,"Select from Pull Down",null,"Select from Pull Down"]
[null,null,null,null,null,null,null,"Select from Pull Down",null,"Select from Pull Down"]
[null,null,null,null,null,null,null,"Select from Pull Down",null,"Select from Pull Down"]
[null,null,null,null,null,null,null,"Select from Pull Down",null,"Select from Pull Down"]
[null,null,null,null,null,null,null,"Select from Pull Down",null,"Select from Pull Down"]
[null,null,null,null,null,null,null,"Select from Pull Down",null,"Select from Pull Down"]
[null,null,null,null,null,null,null,"Select from Pull Down",null,"Select from Pull Down"]
[null,null,null,null,null,null,null,"Select from Pull Down",null,"Select from Pull Down"]
[null,null,null,null,null,null,null,"Select from Pull Down",null,"Select from Pull Down"]
[null,null,null,null,null,null,null,"Select from Pull Down",null,"Select from Pull Down"]
[null,null,null,null,null,null,null,"Select from Pull Down",null,"Select from Pull Down"]
[null,null,null,null,null,null,null,"Select from Pull Down",null,"Select from Pull Down"]
[null,null,null,null,null,null,null,"Select from Pull Down",null,"Select from Pull Down"]
[null,null,null,null,null,null,null,"Select from Pull Down",null,"Select from Pull Down"]
[null,null,null,null,null,null,null,"Select from Pull Down",null,"Select from Pull Down"]
[null,null,null,null,null,null,null,"Select from Pull Down",null,"Select from Pull Down"]
[null,null,null,null,null,null,null,"Select from Pull Down",null,"Select from Pull Down"]
[null,null,null,null,null,null,null,"Select from Pull Down",null,"Select from Pull Down"]
[null,null,null,null,null,null,null,"Select from Pull Down",null,"Select from Pull Down"]
[null,null,null,null,null,null,null,"Select from Pull Down",null,"Select from Pull Down"]
[null,null,null,null,null,null,null,"Select from Pull Down",null,"Select from Pull Down"]
[null,null,null,null,null,null,null,"Select from Pull Down",null,"Select from Pull Down"]
[null,null,null,null,null,null,null,"Select from Pull Down",null,"Select from Pull Down"]
[null,null,null,null,null,null,null,"Select from Pull Down",null,"Select from Pull Down"]
[null,null,null,null,null,null,null,"Select from Pull Down",null,"Select from Pull Down"]
[null,null,null,null,null,null,null,"Select from Pull Down",null,"Select from Pull Down"]
[null,null,null,null,null,null,null,"Select from Pull Down",null,"Select from Pull Down"]
[null,null,null,null,null,null,null,"Select from Pull Down",null,"Select from Pull Down"]
[null,null,null,null,null,null,null,"Select from Pull Down",null,"Select from Pull Down"]
[null,null,null,null,null,null,null,"Select from Pull Down",null,"Select from Pull Down"]
[null,null,null,null,null,null,null,"Select from Pull Down",null,"Select from Pull Down"]
[null,null,null,null,null,null,null,"Select from Pull Down",null,"Select from Pull Down"]
[null,null,null,null,null,null,null,"Select from Pull Down",null,"Select from Pull Down"]
[null,null,null,null,null,null,null,"Select from Pull Down",null,"Select from Pull Down"]
[null,null,null,null,null,null,null,"Select from Pull Down",null,"Select from Pull Down"]
[null,null,null,null,null,null,null,"Select from Pull Down",null,"Select from Pull Down"]
[null,null,null,null,null,null,null,"Select from Pull Down",null,"Select from Pull Down"]
[null,null,null,null,null,null,null,"Select from Pull Down",null,"Select from Pull Down"]
[null,null,null,null,null,null,null,"Select from Pull Down",null,"Select from Pull Down"]
[null,null,null,null,null,null,null,"Select from Pull Down",null,"Select from Pull Down"]
[null,null,null,null,null,null,null,"Select from Pull Down",null,"Select from Pull Down"]
[null,null,null,null,null,null,null,"Select from Pull Down",null,"Select from Pull Down"]
[null,null,null,null,null,null,null,"Select from Pull Down",null,"Select from Pull Down"]
[null,null,null,null,null,null,null,"Select from Pull Down",null,"Select from Pull Down"]
[null,null,null,null,null,null,null,"Select from Pull Down",null,"Select from Pull Down"]
[null,null,null,null,null,null,null,"Select from Pull Down",null,"Select from Pull Down"]
[null,null,null,null,null,null,null,"Select from Pull Down",null,"Select from Pull Down"]
[null,null,null,null,null,null,null,"Select from Pull Down",null,"Select from Pull Down"]
[null,null,null,null,null,null,null,"Select from Pull Down",null,"Select from Pull Down"]
[null,null,null,null,null,null,null,"Select from Pull Down",null,"Select from Pull Down"]
[null,null,null,null,null,null,null,"Select from Pull Down",null,"Select from Pull Down"]
[null,null,null,null,null,null,null,"Select from Pull Down",null,"Select from Pull Down"]
[null,null,null,null,null,null,null,"Select from Pull Down",null,"Select from Pull Down"]
[null,null,null,null,null,null,null,"Select from Pull Down",null,"Select from Pull Down"]
[null,null,null,null,null,null,null,"Select from Pull Down",null,"Select from Pull Down"]
[null,null,null,null,null,null,null,"Select from Pull Down",null,"Select from Pull Down"]
[null,null,null,null,null,null,null,"Select from Pull Down",null,"Select from Pull Down"]
[null,null,null,null,null,null,null,"Select from Pull Down",null,"Select from Pull Down"]
[null,null,null,null,null,null,null,"Select from Pull Down",null,"Select from Pull Down"]
[null,null,null,null,null,null,null,"Select from Pull Down",null,"Select from Pull Down"]
[null,null,null,null,null,null,null,"Select from Pull Down",null,"Select from Pull Down"]
[null,null,null,null,null,null,null,"Select from Pull Down",null,"Select from Pull Down"]
[null,null,null,null,null,null,null,"Select from Pull Down",null,"Select from Pull Down"]
[null,null,null,null,null,null,null,"Select from Pull Down",null,"Select from Pull Down"]
[null,null,null,null,null,null,null,"Select from Pull Down",null,"Select from Pull Down"]
[null,null,null,null,null,null,null,"Select from Pull Down",null,"Select from Pull Down"]
[null,null,null,null,null,null,null,"Select from Pull Down",null,"Select from Pull Down"]
[null,null,null,null,null,null,null,"Select from Pull Down",null,"Select from Pull Down"]
[null,null,null,null,null,null,null,"Select from Pull Down",null,"Select from Pull Down"]
[null,null,null,null,null,null,null,"Select from Pull Down",null,"Select from Pull Down"]
[null,null,null,null,null,null,null,"Select from Pull Down",null,"Select from Pull Down"]
[null,null,null,null,null,null,null,"Select from Pull Down",null,"Select from Pull Down"]
[null,null,null,null,null,null,null,"Select from Pull Down",null,"Select from Pull Down"]
[null,null,null,null,null,null,null,"Select from Pull Down",null,"Select from Pull Down"]
[null,null,null,null,null,null,null,"Select from Pull Down",null,"Select from Pull Down"]
[null,null,null,null,null,null,null,"Select from Pull Down",null,"Select from Pull Down"]
[null,null,null,null,null,null,null,"Select from Pull Down",null,"Select from Pull Down"]
[null,null,null,null,null,null,null,"Select from Pull Down",null,"Select from Pull Down"]
[null,null,null,null,null,null,null,"Select from Pull Down",null,"Select from Pull Down"]
[null,null,null,null,null,null,null,"Select from Pull Down",null,"Select from Pull Down"]
[null,null,null,null,null,null,null,"Select from Pull Down",null,"Select from Pull Down"]
[null,null,null,null,null,null,null,"Select from Pull Down",null,"Select from Pull Down"]
[null,null,null,null,null,null,null,"Select from Pull Down",null,"Select from Pull Down"]
[null,null,null,null,null,null,null,"Select from Pull Down",null,"Select from Pull Down"]
[null,null,null,null,null,null,null,"Select from Pull Down",null,"Select from Pull Down"]
[null,null,null,null,null,null,null,"Select from Pull Down",null,"Select from Pull Down"]
[null,null,null,null,null,null,null,"Select from Pull Down",null,"Select from Pull Down"]
[null,null,null,null,null,null,null,"Select from Pull Down",null,"Select from Pull Down"]
[null,null,null,null,null,null,null,"Select from Pull Down",null,"Select from Pull Down"]
[null,null,null,null,null,null,null,"Select from Pull Down",null,"Select from Pull Down"]
[null,null,null,null,null,null,null,"Select from Pull Down",null,"Select from Pull Down"]
[null,null,null,null,null,null,null,"Select from Pull Down",null,"Select from Pull Down"]
[null,null,null,null,null,null,null,"Select from Pull Down",null,"Select from Pull Down"]
[null,null,null,null,null,null,null,"Select from Pull Down",null,"Select from Pull Down"]
[null,null,null,null,null,null,null,"Select from Pull Down",null,"Select from Pull Down"]
[null,null,null,null,null,null,null,"Select from Pull Down",null,"Select from Pull Down"]
[null,null,null,null,null,null,null,"Select from Pull Down",null,"Select from Pull Down"]
[null,null,null,null,null,null,null,"Select from Pull Down",null,"Select from Pull Down"]
[null,null,null,null,null,null,null,"Select from Pull Down",null,"Select from Pull Down"]
[null,null,null,null,null,null,null,"Select from Pull Down",null,"Select from Pull Down"]
[null,null,null,null,null,null,null,"Select from Pull Down",null,"Select from Pull Down"]
[null,null,null,null,null,null,null,"Select from Pull Down",null,"Select from Pull Down"]
[null,null,null,null,null,null,null,"Select from Pull Down",null,"Select from Pull Down"]
[null,null,null,null,null,null,null,"Select from Pull Down",null,"Select from Pull Down"]
[null,null,null,null,null,null,null,"Select from Pull Down",null,"Select from Pull Down"]
[null,null,null,null,null,null,null,"Select from Pull Down",null,"Select from Pull Down"]
[null,null,null,null,null,null,null,"Select from Pull Down",null,"Select from Pull Down"]
[null,null,null,null,null,null,null,"Select from Pull Down",null,"Select from Pull Down"]
[null,null,null,null,null,null,null,"Select from Pull Down",null,"Select from Pull Down"]
[null,null,null,null,null,null,null,"Select from Pull Down",null,"Select from Pull Down"]
[null,null,null,null,null,null,null,"Select from Pull Down",null,"Select from Pull Down"]
[null,null,null,null,null,null,null,"Select from Pull Down",null,"Select from Pull Down"]
[null,null,null,null,null,null,null,"Select from Pull Down",null,"Select from Pull Down"]
[null,null,null,null,null,null,null,"Select from Pull Down",null,"Select from Pull Down"]
[null,null,null,null,null,null,null,"Select from Pull Down",null,"Select from Pull Down"]
[null,null,null,null,null,null,null,"Select from Pull Down",null,"Select from Pull Down"]
[null,null,null,null,null,null,null,"Select from Pull Down",null,"Select from Pull Down"]
[null,null,null,null,null,null,null,"Select from Pull Down",null,"Select from Pull Down"]
[null,null,null,null,null,null,null,"Select from Pull Down",null,"Select from Pull Down"]
[null,null,null,null,null,null,null,"Select from Pull Down",null,"Select from Pull Down"]
[null,null,null,null,null,null,null,"Select from Pull Down",null,"Select from Pull Down"]
[null,null,null,null,null,null,null,"Select from Pull Down",null,"Select from Pull Down"]
[null,null,null,null,null,null,null,"Select from Pull Down",null,"Select from Pull Down"]
[null,null,null,null,null,null,null,"Select from Pull Down",null,"Select from Pull Down"]
[null,null,null,null,null,null,null,"Select from Pull Down",null,"Select from Pull Down"]
[null,null,null,null,null,null,null,"Select from Pull Down",null,"Select from Pull Down"]
[null,null,null,null,null,null,null,"Select from Pull Down",null,"Select from Pull Down"]
[null,null,null,null,null,null,null,"Select from Pull Down",null,"Select from Pull Down"]
[null,null,null,null,null,null,null,"Select from Pull Down",null,"Select from Pull Down"]
[null,null,null,null,null,null,null,"Select from Pull Down",null,"Select from Pull Down"]
[null,null,null,null,null,null,null,"Select from Pull Down",null,"Select from Pull Down"]
[null,null,null,null,null,null,null,"Select from Pull Down",null,"Select from Pull Down"]
[null,null,null,null,null,null,null,"Select from Pull Down",null,"Select from Pull Down"]
[null,null,null,null,null,null,null,"Select from Pull Down",null,"Select from Pull Down"]
[null,null,null,null,null,null,null,"Select from Pull Down",null,"Select from Pull Down"]
[null,null,null,null,null,null,null,"Select from Pull Down",null,"Select from Pull Down"]
[null,null,null,null,null,null,null,"Select from Pull Down",null,"Select from Pull Down"]
[null,null,null,null,null,null,null,"Select from Pull Down",null,"Select from Pull Down"]
[null,null,null,null,null,null,null,"Select from Pull Down",null,"Select from Pull Down"]
[null,null,null,null,null,null,null,"Select from Pull Down",null,"Select from Pull Down"]
[null,null,null,null,null,null,null,"Select from Pull Down",null,"Select from Pull Down"]
[null,null,null,null,null,null,null,"Select from Pull Down",null,"Select from Pull Down"]
[null,null,null,null,null,null,null,"Select from Pull Down",null,"Select from Pull Down"]
[null,null,null,null,null,null,null,"Select from Pull Down",null,"Select from Pull Down"]
[null,null,null,null,null,null,null,"Select from Pull Down",null,"Select from Pull Down"]
[null,null,null,null,null,null,null,"Select from Pull Down",null,"Select from Pull Down"]
[null,null,null,null,null,null,null,"Select from Pull Down",null,"Select from Pull Down"]
[null,null,null,null,null,null,null,"Select from Pull Down",null,"Select from Pull Down"]
[null,null,null,null,null,null,null,"Select from Pull Down",null,"Select from Pull Down"]
[null,null,null,null,null,null,null,"Select from Pull Down",null,"Select from Pull Down"]
[null,null,null,null,null,null,null,"Select from Pull Down",null,"Select from Pull Down"]
[null,null,null,null,null,null,null,"Select from Pull Down",null,"Select from Pull Down"]
[null,null,null,null,null,null,null,"Select from Pull Down",null,"Select from Pull Down"]
[null,null,null,null,null,null,null,"Select from Pull Down",null,"Select from Pull Down"]
[null,null,null,null,null,null,null,"Select from Pull Down",null,"Select from Pull Down"]
[null,null,null,null,null,null,null,"Select from Pull Down",null,"Select from Pull Down"]
[null,null,null,null,null,null,null,"Select from Pull Down",null,"Select from Pull Down"]
[null,null,null,null,null,null,null,"Select from Pull Down",null,"Select from Pull Down"]
[null,null,null,null,null,null,null,"Select from Pull Down",null,"Select from Pull Down"]
[null,null,null,null,null,null,null,"Select from Pull Down",null,"Select from Pull Down"]
[null,null,null,null,null,null,null,"Select from Pull Down",null,"Select from Pull Down"]
[null,null,null,null,null,null,null,"Select from Pull Down",null,"Select from Pull Down"]
[null,null,null,null,null,null,null,"Select from Pull Down",null,"Select from Pull Down"]
[null,null,null,null,null,null,null,"Select from Pull Down",null,"Select from Pull Down"]
[null,null,null,null,null,null,null,"Select from Pull Down",null,"Select from Pull Down"]
[null,null,null,null,null,null,null,"Select from Pull Down",null,"Select from Pull Down"]
[null,null,null,null,null,null,null,"Select from Pull Down",null,"Select from Pull Down"]
[null,null,null,null,null,null,null,"Select from Pull Down",null,"Select from Pull Down"]
[null,null,null,null,null,null,null,"Select from Pull Down",null,"Select from Pull Down"]
[null,null,null,null,null,null,null,"Select from Pull Down",null,"Select from Pull Down"]
[null,null,null,null,null,null,null,"Select from Pull Down",null,"Select from Pull Down"]
[null,null,null,null,null,null,null,"Select from Pull Down",null,"Select from Pull Down"]
[null,null,null,null,null,null,null,"Select from Pull Down",null,"Select from Pull Down"]
[null,null,null,null,null,null,null,"Select from Pull Down",null,"Select from Pull Down"]
[null,null,null,null,null,null,null,"Select from Pull Down",null,"Select from Pull Down"]
[null,null,null,null,null,null,null,"Select from Pull Down",null,"Select from Pull Down"]
[null,null,null,null,null,null,null,"Select from Pull Down",null,"Select from Pull Down"]
[null,null,null,null,null,null,null,"Select from Pull Down",null,"Select from Pull Down"]
[null,null,null,null,null,null,null,"Select from Pull Down",null,"Select from Pull Down"]
[null,null,null,null,null,null,null,"Select from Pull Down",null,"Select from Pull Down"]
[null,null,null,null,null,null,null,"Select from Pull Down",null,"Select from Pull Down"]
[null,null,null,null,null,null,null,"Select from Pull Down",null,"Select from Pull Down"]
[null,null,null,null,null,null,null,"Select from Pull Down",null,"Select from Pull Down"]
[null,null,null,null,null,null,null,"Select from Pull Down",null,"Select from Pull Down"]
[null,null,null,null,null,null,null,"Select from Pull Down",null,"Select from Pull Down"]
[null,null,null,null,null,null,null,"Select from Pull Down",null,"Select from Pull Down"]
[null,null,null,null,null,null,null,"Select from Pull Down",null,"Select from Pull Down"]
[null,null,null,null,null,null,null,"Select from Pull Down",null,"Select from Pull Down"]
[null,null,null,null,null,null,null,"Select from Pull Down",null,"Select from Pull Down"]
[null,null,null,null,null,null,null,"Select from Pull Down",null,"Select from Pull Down"]
[null,null,null,null,null,null,null,"Select from Pull Down",null,"Select from Pull Down"]
[null,null,null,null,null,null,null,"Select from Pull Down",null,"Select from Pull Down"]
[null,null,null,null,null,null,null,"Select from Pull Down",null,"Select from Pull Down"]
[null,null,null,null,null,null,null,"Select from Pull Down",null,"Select from Pull Down"]
[null,null,null,null,null,null,null,"Select from Pull Down",null,"Select from Pull Down"]
[null,null,null,null,null,null,null,"Select from Pull Down",null,"Select from Pull Down"]
[null,null,null,null,null,null,null,"Select from Pull Down",null,"Select from Pull Down"]
[null,null,null,null,null,null,null,"Select from Pull Down",null,"Select from Pull Down"]
[null,null,null,null,null,null,null,"Select from Pull Down",null,"Select from Pull Down"]
[null,null,null,null,null,null,null,"Select from Pull Down",null,"Select from Pull Down"]
[null,null,null,null,null,null,null,"Select from Pull Down",null,"Select from Pull Down"]
[null,null,null,null,null,null,null,"Select from Pull Down",null,"Select from Pull Down"]
[null,null,null,null,null,null,null,"Select from Pull Down",null,"Select from Pull Down"]
[null,null,null,null,null,null,null,"Select from Pull Down",null,"Select from Pull Down"]
[null,null,null,null,null,null,null,"Select from Pull Down",null,"Select from Pull Down"]
[null,null,null,null,null,null,null,"Select from Pull Down",null,"Select from Pull Down"]
[null,null,null,null,null,null,null,"Select from Pull Down",null,"Select from Pull Down"]
[null,null,null,null,null,null,null,"Select from Pull Down",null,"Select from Pull Down"]
[null,null,null,null,null,null,null,"Select from Pull Down",null,"Select from Pull Down"]
[null,null,null,null,null,null,null,"Select from Pull Down",null,"Select from Pull Down"]
[null,null,null,null,null,null,null,"Select from Pull Down",null,"Select from Pull Down"]
[null,null,null,null,null,null,null,"Select from Pull Down",null,"Select from Pull Down"]
[null,null,null,null,null,null,null,"Select from Pull Down",null,"Select from Pull Down"]
[null,null,null,null,null,null,null,"Select from Pull Down",null,"Select from Pull Down"]
[null,null,null,null,null,null,null,"Select from Pull Down",null,"Select from Pull Down"]
[null,null,null,null,null,null,null,"Select from Pull Down",null,"Select from Pull Down"]
[null,null,null,null,null,null,null,"Select from Pull Down",null,"Select from Pull Down"]
[null,null,null,null,null,null,null,"Select from Pull Down",null,"Select from Pull Down"]
[null,null,null,null,null,null,null,"Select from Pull Down",null,"Select from Pull Down"]
[null,null,null,null,null,null,null,"Select from Pull Down",null,"Select from Pull Down"]
[null,null,null,null,null,null,null,"Select from Pull Down",null,"Select from Pull Down"]
[null,null,null,null,null,null,null,"Select from Pull Down",null,"Select from Pull Down"]
[null,null,null,null,null,null,null,"Select from Pull Down",null,"Select from Pull Down"]
[null,null,null,null,null,null,null,"Select from Pull Down",null,"Select from Pull Down"]
[null,null,null,null,null,null,null,"Select from Pull Down",null,"Select from Pull Down"]
[null,null,null,null,null,null,null,"Select from Pull Down",null,"Select from Pull Down"]
[null,null,null,null,null,null,null,"Select from Pull Down",null,"Select from Pull Down"]
[null,null,null,null,null,null,null,"Select from Pull Down",null,"Select from Pull Down"]
[null,null,null,null,null,null,null,"Select from Pull Down",null,"Select from Pull Down"]
[null,null,null,null,null,null,null,"Select from Pull Down",null,"Select from Pull Down"]
[null,null,null,null,null,null,null,"Select from Pull Down",null,"Select from Pull Down"]
[null,null,null,null,null,null,null,"Select from Pull Down",null,"Select from Pull Down"]
[null,null,null,null,null,null,null,"Select from Pull Down",null,"Select from Pull Down"]
[null,null,null,null,null,null,null,"Select from Pull Down",null,"Select from Pull Down"]
[null,null,null,null,null,null,null,"Select from Pull Down",null,"Select from Pull Down"]
[null,null,null,null,null,null,null,"Select from Pull Down",null,"Select from Pull Down"]
[null,null,null,null,null,null,null,"Select from Pull Down",null,"Select from Pull Down"]
[null,null,null,null,null,null,null,"Select from Pull Down",null,"Select from Pull Down"]
[null,null,null,null,null,null,null,"Select from Pull Down",null,"Select from Pull Down"]
[null,null,null,null,null,null,null,"Select from Pull Down",null,"Select from Pull Down"]
[null,null,null,null,null,null,null,"Select from Pull Down",null,"Select from Pull Down"]
[null,null,null,null,null,null,null,"Select from Pull Down",null,"Select from Pull Down"]
[null,null,null,null,null,null,null,"Select from Pull Down",null,"Select from Pull Down"]
[null,null,null,null,null,null,null,"Select from Pull Down",null,"Select from Pull Down"]
[null,null,null,null,null,null,null,"Select from Pull Down",null,"Select from Pull Down"]
[null,null,null,null,null,null,null,"Select from Pull Down",null,"Select from Pull Down"]
[null,null,null,null,null,null,null,"Select from Pull Down",null,"Select from Pull Down"]
[null,null,null,null,null,null,null,"Select from Pull Down",null,"Select from Pull Down"]
[null,null,null,null,null,null,null,"Select from Pull Down",null,"Select from Pull Down"]
[null,null,null,null,null,null,null,"Select from Pull Down",null,"Select from Pull Down"]
[null,null,null,null,null,null,null,"Select from Pull Down",null,"Select from Pull Down"]
[null,null,null,null,null,null,null,"Select from Pull Down",null,"Select from Pull Down"]
[null,null,null,null,null,null,null,"Select from Pull Down",null,"Select from Pull Down"]
[null,null,null,null,null,null,null,"Select from Pull Down",null,"Select from Pull Down"]
[null,null,null,null,null,null,null,"Select from Pull Down",null,"Select from Pull Down"]
[null,null,null,null,null,null,null,"Select from Pull Down",null,"Select from Pull Down"]
[null,null,null,null,null,null,null,"Select from Pull Down",null,"Select from Pull Down"]
[null,null,null,null,null,null,null,"Select from Pull Down",null,"Select from Pull Down"]
[null,null,null,null,null,null,null,"Select from Pull Down",null,"Select from Pull Down"]
[null,null,null,null,null,null,null,"Select from Pull Down",null,"Select from Pull Down"]
[null,null,null,null,null,null,null,"Select from Pull Down",null,"Select from Pull Down"]
[null,null,null,null,null,null,null,"Select from Pull Down",null,"Select from Pull Down"]
[null,null,null,null,null,null,null,"Select from Pull Down",null,"Select from Pull Down"]
[null,null,null,null,null,null,null,"Select from Pull Down",null,"Select from Pull Down"]
[null,null,null,null,null,null,null,"Select from Pull Down",null,"Select from Pull Down"]
[null,null,null,null,null,null,null,"Select from Pull Down",null,"Select from Pull Down"]
[null,null,null,null,null,null,null,"Select from Pull Down",null,"Select from Pull Down"]
[null,null,null,null,null,null,null,"Select from Pull Down",null,"Select from Pull Down"]
[null,null,null,null,null,null,null,"Select from Pull Down",null,"Select from Pull Down"]
[null,null,null,null,null,null,null,"Select from Pull Down",null,"Select from Pull Down"]
[null,null,null,null,null,null,null,"Select from Pull Down",null,"Select from Pull Down"]
[null,null,null,null,null,null,null,"Select from Pull Down",null,"Select from Pull Down"]
[null,null,null,null,null,null,null,"Select from Pull Down",null,"Select from Pull Down"]
[null,null,null,null,null,null,null,"Select from Pull Down",null,"Select from Pull Down"]
[null,null,null,null,null,null,null,"Select from Pull Down",null,"Select from Pull Down"]
[null,null,null,null,null,null,null,"Select from Pull Down",null,"Select from Pull Down"]
[null,null,null,null,null,null,null,"Select from Pull Down",null,"Select from Pull Down"]
[null,null,null,null,null,null,null,"Select from Pull Down",null,"Select from Pull Down"]
[null,null,null,null,null,null,null,"Select from Pull Down",null,"Select from Pull Down"]
[null,null,null,null,null,null,null,"Select from Pull Down",null,"Select from Pull Down"]
[null,null,null,null,null,null,null,"Select from Pull Down",null,"Select from Pull Down"]
[null,null,null,null,null,null,null,"Select from Pull Down",null,"Select from Pull Down"]
[null,null,null,null,null,null,null,"Select from Pull Down",null,"Select from Pull Down"]
[null,null,null,null,null,null,null,"Select from Pull Down",null,"Select from Pull Down"]
[null,null,null,null,null,null,null,"Select from Pull Down",null,"Select from Pull Down"]
[null,null,null,null,null,null,null,"Select from Pull Down",null,"Select from Pull Down"]
[null,null,null,null,null,null,null,"Select from Pull Down",null,"Select from Pull Down"]
[null,null,null,null,null,null,null,"Select from Pull Down",null,"Select from Pull Down"]
[null,null,null,null,null,null,null,"Select from Pull Down",null,"Select from Pull Down"]
[null,null,null,null,null,null,null,"Select from Pull Down",null,"Select from Pull Down"]
[null,null,null,null,null,null,null,"Select from Pull Down",null,"Select from Pull Down"]
[null,null,null,null,null,null,null,"Select from Pull Down",null,"Select from Pull Down"]
[null,null,null,null,null,null,null,"Select from Pull Down",null,"Select from Pull Down"]
[null,null,null,null,null,null,null,"Select from Pull Down",null,"Select from Pull Down"]
[null,null,null,null,null,null,null,"Select from Pull Down",null,"Select from Pull Down"]
[null,null,null,null,null,null,null,"Select from Pull Down",null,"Select from Pull Down"]
[null,null,null,null,null,null,null,"Select from Pull Down",null,"Select from Pull Down"]
[null,null,null,null,null,null,null,"Select from Pull Down",null,"Select from Pull Down"]
[null,null,null,null,null,null,null,"Select from Pull Down",null,"Select from Pull Down"]
[null,null,null,null,null,null,null,"Select from Pull Down",null,"Select from Pull Down"]
[null,null,null,null,null,null,null,"Select from Pull Down",null,"Select from Pull Down"]
[null,null,null,null,null,null,null,"Select from Pull Down",null,"Select from Pull Down"]
[null,null,null,null,null,null,null,"Select from Pull Down",null,"Select from Pull Down"]
[null,null,null,null,null,null,null,"Select from Pull Down",null,"Select from Pull Down"]
[null,null,null,null,null,null,null,"Select from Pull Down",null,"Select from Pull Down"]
[null,null,null,null,null,null,null,"Select from Pull Down",null,"Select from Pull Down"]
[null,null,null,null,null,null,null,"Select from Pull Down",null,"Select from Pull Down"]
[null,null,null,null,null,null,null,"Select from Pull Down",null,"Select from Pull Down"]
[null,null,null,null,null,null,null,"Select from Pull Down",null,"Select from Pull Down"]
[null,null,null,null,null,null,null,"Select from Pull Down",null,"Select from Pull Down"]
[null,null,null,null,null,null,null,"Select from Pull Down",null,"Select from Pull Down"]
[null,null,null,null,null,null,null,"Select from Pull Down",null,"Select from Pull Down"]
[null,null,null,null,null,null,null,"Select from Pull Down",null,"Select from Pull Down"]
[null,null,null,null,null,null,null,"Select from Pull Down",null,"Select from Pull Down"]
[null,null,null,null,null,null,null,"Select from Pull Down",null,"Select from Pull Down"]
[null,null,null,null,null,null,null,"Select from Pull Down",null,"Select from Pull Down"]
[null,null,null,null,null,null,null,"Select from Pull Down",null,"Select from Pull Down"]
[null,null,null,null,null,null,null,"Select from Pull Down",null,"Select from Pull Down"]
[null,null,null,null,null,null,null,"Select from Pull Down",null,"Select from Pull Down"]
[null,null,null,null,null,null,null,"Select from Pull Down",null,"Select from Pull Down"]
[null,null,null,null,null,null,null,"Select from Pull Down",null,"Select from Pull Down"]
[null,null,null,null,null,null,null,"Select from Pull Down",null,"Select from Pull Down"]
[null,null,null,null,null,null,null,"Select from Pull Down",null,"Select from Pull Down"]
[null,null,null,null,null,null,null,"Select from Pull Down",null,"Select from Pull Down"]
[null,null,null,null,null,null,null,"Select from Pull Down",null,"Select from Pull Down"]
[null,null,null,null,null,null,null,"Select from Pull Down",null,"Select from Pull Down"]
[null,null,null,null,null,null,null,"Select from Pull Down",null,"Select from Pull Down"]
[null,null,null,null,null,null,null,"Select from Pull Down",null,"Select from Pull Down"]
[null,null,null,null,null,null,null,"Select from Pull Down",null,"Select from Pull Down"]
[null,null,null,null,null,null,null,"Select from Pull Down",null,"Select from Pull Down"]
[null,null,null,null,null,null,null,"Select from Pull Down",null,"Select from Pull Down"]
[null,null,null,null,null,null,null,"Select from Pull Down",null,"Select from Pull Down"]
[null,null,null,null,null,null,null,"Select from Pull Down",null,"Select from Pull Down"]
[null,null,null,null,null,null,null,"Select from Pull Down",null,"Select from Pull Down"]
[null,null,null,null,null,null,null,"Select from Pull Down",null,"Select from Pull Down"]
[null,null,null,null,null,null,null,"Select from Pull Down",null,"Select from Pull Down"]
[null,null,null,null,null,null,null,"Select from Pull Down",null,"Select from Pull Down"]
[null,null,null,null,null,null,null,"Select from Pull Down",null,"Select from Pull Down"]
[null,null,null,null,null,null,null,"Select from Pull Down",null,"Select from Pull Down"]
[null,null,null,null,null,null,null,"Select from Pull Down",null,"Select from Pull Down"]
[null,null,null,null,null,null,null,"Select from Pull Down",null,"Select from Pull Down"]
[null,null,null,null,null,null,null,"Select from Pull Down",null,"Select from Pull Down"]
[null,null,null,null,null,null,null,"Select from Pull Down",null,"Select from Pull Down"]
[null,null,null,null,null,null,null,"Select from Pull Down",null,"Select from Pull Down"]
[null,null,null,null,null,null,null,"Select from Pull Down",null,"Select from Pull Down"]
[null,null,null,null,null,null,null,"Select from Pull Down",null,"Select from Pull Down"]
[null,null,null,null,null,null,null,"Select from Pull Down",null,"Select from Pull Down"]
[null,null,null,null,null,null,null,"Select from Pull Down",null,"Select from Pull Down"]
[null,null,null,null,null,null,null,"Select from Pull Down",null,"Select from Pull Down"]
[null,null,null,null,null,null,null,"Select from Pull Down",null,"Select from Pull Down"]
[null,null,null,null,null,null,null,"Select from Pull Down",null,"Select from Pull Down"]
[null,null,null,null,null,null,null,"Select from Pull Down",null,"Select from Pull Down"]
[null,null,null,null,null,null,null,"Select from Pull Down",null,"Select from Pull Down"]
[null,null,null,null,null,null,null,"Select from Pull Down",null,"Select from Pull Down"]
[null,null,null,null,null,null,null,"Select from Pull Down",null,"Select from Pull Down"]
[null,null,null,null,null,null,null,"Select from Pull Down",null,"Select from Pull Down"]
[null,null,null,null,null,null,null,"Select from Pull Down",null,"Select from Pull Down"]
[null,null,null,null,null,null,null,"Select from Pull Down",null,"Select from Pull Down"]
[null,null,null,null,null,null,null,"Select from Pull Down",null,"Select from Pull Down"]
[null,null,null,null,null,null,null,"Select from Pull Down",null,"Select from Pull Down"]
[null,null,null,null,null,null,null,"Select from Pull Down",null,"Select from Pull Down"]
[null,null,null,null,null,null,null,"Select from Pull Down",null,"Select from Pull Down"]
[null,null,null,null,null,null,null,"Select from Pull Down",null,"Select from Pull Down"]
[null,null,null,null,null,null,null,"Select from Pull Down",null,"Select from Pull Down"]
[null,null,null,null,null,null,null,"Select from Pull Down",null,"Select from Pull Down"]
[null,null,null,null,null,null,null,"Select from Pull Down",null,"Select from Pull Down"]
[null,null,null,null,null,null,null,"Select from Pull Down",null,"Select from Pull Down"]
[null,null,null,null,null,null,null,"Select from Pull Down",null,"Select from Pull Down"]
[null,null,null,null,null,null,null,"Select from Pull Down",null,"Select from Pull Down"]
[null,null,null,null,null,null,null,"Select from Pull Down",null,"Select from Pull Down"]
[null,null,null,null,null,null,null,"Select from Pull Down",null,"Select from Pull Down"]
[null,null,null,null,null,null,null,"Select from Pull Down",null,"Select from Pull Down"]

{"sheet":"Report","index":2,"n_rows":306,"n_cols":15,"rows_kept":306,"cut":false,"hidden":false,"merged":[]}
[]
[]
[null,"Agent Accounting REPORT"]
[]
[null,"Profit / Loss =",{"$f":"+G39-C57","v":0}]
[]
[null,"Expenses by Category","Total","%",null,"Income by Category","Total","%"]
[null,{"$f":"+Accounts!B9","v":"Bank Service Charges"},{"$f":"SUMIF(Table5[Expense Account],B8,Table5[Debit])","v":0},{"$f":"+Table6[[#This Row],[Total]]/$C$39","v":{"$error":"#DIV/0!"}},null,{"$f":"+Accounts!D8","v":"Commission Income"},{"$f":"IF(SUMIF(Table5[Income Account],,Table5[Credit]),\"n/a\",SUMIF(Table5[Income Account],F8,Table5[Credit]))","v":0},{"$f":"+Table7[[#This Row],[Total]]/$G$39","v":{"$error":"#DIV/0!"}}]
[null,{"$f":"+Accounts!B10","v":"Business Insurance"},{"$f":"SUMIF(Table5[Expense Account],B9,Table5[Debit])","v":0},{"$f":"+Table6[[#This Row],[Total]]/$C$39","v":{"$error":"#DIV/0!"}},null,{"$f":"+Accounts!D9","v":0},{"$f":"IF(SUMIF(Table5[Income Account],,Table5[Credit]),\"n/a\",SUMIF(Table5[Income Account],F9,Table5[Credit]))","v":0},{"$f":"+Table7[[#This Row],[Total]]/$G$39","v":{"$error":"#DIV/0!"}}]
[null,{"$f":"+Accounts!B8","v":"Advertising"},{"$f":"SUMIF(Table5[Expense Account],B10,Table5[Debit])","v":0},{"$f":"+Table6[[#This Row],[Total]]/$C$39","v":{"$error":"#DIV/0!"}},null,{"$f":"+Accounts!D10","v":0},{"$f":"IF(SUMIF(Table5[Income Account],,Table5[Credit]),\"n/a\",SUMIF(Table5[Income Account],F10,Table5[Credit]))","v":0},{"$f":"+Table7[[#This Row],[Total]]/$G$39","v":{"$error":"#DIV/0!"}}]
[null,{"$f":"+Accounts!B11","v":"Car Payment(s)"},{"$f":"SUMIF(Table5[Expense Account],B11,Table5[Debit])","v":0},{"$f":"+Table6[[#This Row],[Total]]/$C$39","v":{"$error":"#DIV/0!"}},null,{"$f":"+Accounts!D11","v":0},{"$f":"IF(SUMIF(Table5[Income Account],,Table5[Credit]),\"n/a\",SUMIF(Table5[Income Account],F11,Table5[Credit]))","v":0},{"$f":"+Table7[[#This Row],[Total]]/$G$39","v":{"$error":"#DIV/0!"}}]
[null,{"$f":"+Accounts!B13","v":"Client Gifts"},{"$f":"SUMIF(Table5[Expense Account],B12,Table5[Debit])","v":0},{"$f":"+Table6[[#This Row],[Total]]/$C$39","v":{"$error":"#DIV/0!"}},null,{"$f":"+Accounts!D12","v":0},{"$f":"IF(SUMIF(Table5[Income Account],,Table5[Credit]),\"n/a\",SUMIF(Table5[Income Account],F12,Table5[Credit]))","v":0},{"$f":"+Table7[[#This Row],[Total]]/$G$39","v":{"$error":"#DIV/0!"}}]
[null,{"$f":"+Accounts!B12","v":"Cell Phone"},{"$f":"SUMIF(Table5[Expense Account],B13,Table5[Debit])","v":0},{"$f":"+Table6[[#This Row],[Total]]/$C$39","v":{"$error":"#DIV/0!"}},null,{"$f":"+Accounts!D13","v":0},{"$f":"IF(SUMIF(Table5[Income Account],,Table5[Credit]),\"n/a\",SUMIF(Table5[Income Account],F13,Table5[Credit]))","v":0},{"$f":"+Table7[[#This Row],[Total]]/$G$39","v":{"$error":"#DIV/0!"}}]
[null,{"$f":"+Accounts!B14","v":"Computer & Internet"},{"$f":"SUMIF(Table5[Expense Account],B14,Table5[Debit])","v":0},{"$f":"+Table6[[#This Row],[Total]]/$C$39","v":{"$error":"#DIV/0!"}},null,{"$f":"+Accounts!D14","v":0},{"$f":"IF(SUMIF(Table5[Income Account],,Table5[Credit]),\"n/a\",SUMIF(Table5[Income Account],F14,Table5[Credit]))","v":0},{"$f":"+Table7[[#This Row],[Total]]/$G$39","v":{"$error":"#DIV/0!"}}]
[null,{"$f":"+Accounts!B15","v":"Depreciation"},{"$f":"SUMIF(Table5[Expense Account],B15,Table5[Debit])","v":0},{"$f":"+Table6[[#This Row],[Total]]/$C$39","v":{"$error":"#DIV/0!"}},null,{"$f":"+Accounts!D15","v":0},{"$f":"IF(SUMIF(Table5[Income Account],,Table5[Credit]),\"n/a\",SUMIF(Table5[Income Account],F15,Table5[Credit]))","v":0},{"$f":"+Table7[[#This Row],[Total]]/$G$39","v":{"$error":"#DIV/0!"}},null,null,null,null,null,{"$f":"+Table7[[#This Row],[Income by Category]]","v":0},{"$f":"IF(+Table7[[#This Row],[Total]]=\"\",NA(),+Table7[[#This Row],[Total]])","v":0}]
[null,{"$f":"+Accounts!B16","v":"Disability Ins"},{"$f":"SUMIF(Table5[Expense Account],B16,Table5[Debit])","v":0},{"$f":"+Table6[[#This Row],[Total]]/$C$39","v":{"$error":"#DIV/0!"}},null,{"$f":"+Accounts!D16","v":0},{"$f":"IF(SUMIF(Table5[Income Account],,Table5[Credit]),\"n/a\",SUMIF(Table5[Income Account],F16,Table5[Credit]))","v":0},{"$f":"+Table7[[#This Row],[Total]]/$G$39","v":{"$error":"#DIV/0!"}},null,null,null,null,null,{"$f":"+Table7[[#This Row],[Income by Category]]","v":0},{"$f":"IF(+Table7[[#This Row],[Total]]=\"\",NA(),+Table7[[#This Row],[Total]])","v":0}]
[null,{"$f":"+Accounts!B17","v":"Donations"},{"$f":"SUMIF(Table5[Expense Account],B17,Table5[Debit])","v":0},{"$f":"+Table6[[#This Row],[Total]]/$C$39","v":{"$error":"#DIV/0!"}},null,{"$f":"+Accounts!D17","v":0},{"$f":"IF(SUMIF(Table5[Income Account],,Table5[Credit]),\"n/a\",SUMIF(Table5[Income Account],F17,Table5[Credit]))","v":0},{"$f":"+Table7[[#This Row],[Total]]/$G$39","v":{"$error":"#DIV/0!"}},null,null,null,null,null,{"$f":"+Table7[[#This Row],[Income by Category]]","v":0},{"$f":"IF(+Table7[[#This Row],[Total]]=\"\",NA(),+Table7[[#This Row],[Total]])","v":0}]
[null,{"$f":"+Accounts!B18","v":"Dues & Subscriptions"},{"$f":"SUMIF(Table5[Expense Account],B18,Table5[Debit])","v":0},{"$f":"+Table6[[#This Row],[Total]]/$C$39","v":{"$error":"#DIV/0!"}},null,{"$f":"+Accounts!D18","v":0},{"$f":"IF(SUMIF(Table5[Income Account],,Table5[Credit]),\"n/a\",SUMIF(Table5[Income Account],F18,Table5[Credit]))","v":0},{"$f":"+Table7[[#This Row],[Total]]/$G$39","v":{"$error":"#DIV/0!"}},null,null,null,null,null,{"$f":"+Table7[[#This Row],[Income by Category]]","v":0},{"$f":"IF(+Table7[[#This Row],[Total]]=\"\",NA(),+Table7[[#This Row],[Total]])","v":0}]
[null,{"$f":"+Accounts!B19","v":"Franchise Charges"},{"$f":"SUMIF(Table5[Expense Account],B19,Table5[Debit])","v":0},{"$f":"+Table6[[#This Row],[Total]]/$C$39","v":{"$error":"#DIV/0!"}},null,{"$f":"+Accounts!D19","v":0},{"$f":"IF(SUMIF(Table5[Income Account],,Table5[Credit]),\"n/a\",SUMIF(Table5[Income Account],F19,Table5[Credit]))","v":0},{"$f":"+Table7[[#This Row],[Total]]/$G$39","v":{"$error":"#DIV/0!"}},null,null,null,null,null,{"$f":"+Table7[[#This Row],[Income by Category]]","v":0},{"$f":"IF(+Table7[[#This Row],[Total]]=\"\",NA(),+Table7[[#This Row],[Total]])","v":0}]
[null,{"$f":"+Accounts!B20","v":"Health Insurance"},{"$f":"SUMIF(Table5[Expense Account],B20,Table5[Debit])","v":0},{"$f":"+Table6[[#This Row],[Total]]/$C$39","v":{"$error":"#DIV/0!"}},null,{"$f":"+Accounts!D20","v":0},{"$f":"IF(SUMIF(Table5[Income Account],,Table5[Credit]),\"n/a\",SUMIF(Table5[Income Account],F20,Table5[Credit]))","v":0},{"$f":"+Table7[[#This Row],[Total]]/$G$39","v":{"$error":"#DIV/0!"}},null,null,null,null,null,{"$f":"+Table7[[#This Row],[Income by Category]]","v":0},{"$f":"IF(+Table7[[#This Row],[Total]]=\"\",NA(),+Table7[[#This Row],[Total]])","v":0}]
[null,{"$f":"+Accounts!B21","v":"HOA Dues"},{"$f":"SUMIF(Table5[Expense Account],B21,Table5[Debit])","v":0},{"$f":"+Table6[[#This Row],[Total]]/$C$39","v":{"$error":"#DIV/0!"}},null,{"$f":"+Accounts!D21","v":0},{"$f":"IF(SUMIF(Table5[Income Account],,Table5[Credit]),\"n/a\",SUMIF(Table5[Income Account],F21,Table5[Credit]))","v":0},{"$f":"+Table7[[#This Row],[Total]]/$G$39","v":{"$error":"#DIV/0!"}},null,null,null,null,null,{"$f":"+Table7[[#This Row],[Income by Category]]","v":0},{"$f":"IF(+Table7[[#This Row],[Total]]=\"\",NA(),+Table7[[#This Row],[Total]])","v":0}]
[null,{"$f":"+Accounts!B22","v":"Legal & Professional Services"},{"$f":"SUMIF(Table5[Expense Account],B22,Table5[Debit])","v":0},{"$f":"+Table6[[#This Row],[Total]]/$C$39","v":{"$error":"#DIV/0!"}},null,{"$f":"+Accounts!D22","v":0},{"$f":"IF(SUMIF(Table5[Income Account],,Table5[Credit]),\"n/a\",SUMIF(Table5[Income Account],F22,Table5[Credit]))","v":0},{"$f":"+Table7[[#This Row],[Total]]/$G$39","v":{"$error":"#DIV/0!"}},null,null,null,null,null,{"$f":"+Table7[[#This Row],[Income by Category]]","v":0},{"$f":"IF(+Table7[[#This Row],[Total]]=\"\",NA(),+Table7[[#This Row],[Total]])","v":0}]
[null,{"$f":"+Accounts!B23","v":"Licensing & Permits"},{"$f":"SUMIF(Table5[Expense Account],B23,Table5[Debit])","v":0},{"$f":"+Table6[[#This Row],[Total]]/$C$39","v":{"$error":"#DIV/0!"}},null,{"$f":"+Accounts!D23","v":0},{"$f":"IF(SUMIF(Table5[Income Account],,Table5[Credit]),\"n/a\",SUMIF(Table5[Income Account],F23,Table5[Credit]))","v":0},{"$f":"+Table7[[#This Row],[Total]]/$G$39","v":{"$error":"#DIV/0!"}},null,null,null,null,null,{"$f":"+Table7[[#This Row],[Income by Category]]","v":0},{"$f":"IF(+Table7[[#This Row],[Total]]=\"\",NA(),+Table7[[#This Row],[Total]])","v":0}]
[null,{"$f":"+Accounts!B24","v":"Marketing"},{"$f":"SUMIF(Table5[Expense Account],B24,Table5[Debit])","v":0},{"$f":"+Table6[[#This Row],[Total]]/$C$39","v":{"$error":"#DIV/0!"}},null,{"$f":"+Accounts!D24","v":0},{"$f":"IF(SUMIF(Table5[Income Account],,Table5[Credit]),\"n/a\",SUMIF(Table5[Income Account],F24,Table5[Credit]))","v":0},{"$f":"+Table7[[#This Row],[Total]]/$G$39","v":{"$error":"#DIV/0!"}},null,null,null,null,null,{"$f":"+Table7[[#This Row],[Income by Category]]","v":0},{"$f":"IF(+Table7[[#This Row],[Total]]=\"\",NA(),+Table7[[#This Row],[Total]])","v":0}]
[null,{"$f":"+Accounts!B25","v":"MD and Dentist"},{"$f":"SUMIF(Table5[Expense Account],B25,Table5[Debit])","v":0},{"$f":"+Table6[[#This Row],[Total]]/$C$39","v":{"$error":"#DIV/0!"}},null,{"$f":"+Accounts!D25","v":0},{"$f":"IF(SUMIF(Table5[Income Account],,Table5[Credit]),\"n/a\",SUMIF(Table5[Income Account],F25,Table5[Credit]))","v":0},{"$f":"+Table7[[#This Row],[Total]]/$G$39","v":{"$error":"#DIV/0!"}},null,null,null,null,null,{"$f":"+Table7[[#This Row],[Income by Category]]","v":0},{"$f":"IF(+Table7[[#This Row],[Total]]=\"\",NA(),+Table7[[#This Row],[Total]])","v":0}]
[null,{"$f":"+Accounts!B26","v":"Meals & Entertainment"},{"$f":"SUMIF(Table5[Expense Account],B26,Table5[Debit])","v":0},{"$f":"+Table6[[#This Row],[Total]]/$C$39","v":{"$error":"#DIV/0!"}},null,{"$f":"+Accounts!D26","v":0},{"$f":"IF(SUMIF(Table5[Income Account],,Table5[Credit]),\"n/a\",SUMIF(Table5[Income Account],F26,Table5[Credit]))","v":0},{"$f":"+Table7[[#This Row],[Total]]/$G$39","v":{"$error":"#DIV/0!"}},null,null,null,null,null,{"$f":"+Table7[[#This Row],[Income by Category]]","v":0},{"$f":"IF(+Table7[[#This Row],[Total]]=\"\",NA(),+Table7[[#This Row],[Total]])","v":0}]
[null,{"$f":"+Accounts!B27","v":"Mortgage Interest"},{"$f":"SUMIF(Table5[Expense Account],B27,Table5[Debit])","v":0},{"$f":"+Table6[[#This Row],[Total]]/$C$39","v":{"$error":"#DIV/0!"}},null,{"$f":"+Accounts!D27","v":0},{"$f":"IF(SUMIF(Table5[Income Account],,Table5[Credit]),\"n/a\",SUMIF(Table5[Income Account],F27,Table5[Credit]))","v":0},{"$f":"+Table7[[#This Row],[Total]]/$G$39","v":{"$error":"#DIV/0!"}},null,null,null,null,null,{"$f":"+Table7[[#This Row],[Income by Category]]","v":0},{"$f":"IF(+Table7[[#This Row],[Total]]=\"\",NA(),+Table7[[#This Row],[Total]])","v":0}]
[null,{"$f":"+Accounts!B28","v":"New Phone"},{"$f":"SUMIF(Table5[Expense Account],B28,Table5[Debit])","v":0},{"$f":"+Table6[[#This Row],[Total]]/$C$39","v":{"$error":"#DIV/0!"}},null,{"$f":"+Accounts!D28","v":0},{"$f":"IF(SUMIF(Table5[Income Account],,Table5[Credit]),\"n/a\",SUMIF(Table5[Income Account],F28,Table5[Credit]))","v":0},{"$f":"+Table7[[#This Row],[Total]]/$G$39","v":{"$error":"#DIV/0!"}},null,null,null,null,null,{"$f":"+Table7[[#This Row],[Income by Category]]","v":0},{"$f":"IF(+Table7[[#This Row],[Total]]=\"\",NA(),+Table7[[#This Row],[Total]])","v":0}]
[null,{"$f":"+Accounts!B29","v":"Office Equipment"},{"$f":"SUMIF(Table5[Expense Account],B29,Table5[Debit])","v":0},{"$f":"+Table6[[#This Row],[Total]]/$C$39","v":{"$error":"#DIV/0!"}},null,{"$f":"+Accounts!D29","v":0},{"$f":"IF(SUMIF(Table5[Income Account],,Table5[Credit]),\"n/a\",SUMIF(Table5[Income Account],F29,Table5[Credit]))","v":0},{"$f":"+Table7[[#This Row],[Total]]/$G$39","v":{"$error":"#DIV/0!"}},null,null,null,null,null,{"$f":"+Table7[[#This Row],[Income by Category]]","v":0},{"$f":"IF(+Table7[[#This Row],[Total]]=\"\",NA(),+Table7[[#This Row],[Total]])","v":0}]
[null,{"$f":"+Accounts!B30","v":"Office Expense"},{"$f":"SUMIF(Table5[Expense Account],B30,Table5[Debit])","v":0},{"$f":"+Table6[[#This Row],[Total]]/$C$39","v":{"$error":"#DIV/0!"}},null,{"$f":"+Accounts!D30","v":0},{"$f":"IF(SUMIF(Table5[Income Account],,Table5[Credit]),\"n/a\",SUMIF(Table5[Income Account],F30,Table5[Credit]))","v":0},{"$f":"+Table7[[#This Row],[Total]]/$G$39","v":{"$error":"#DIV/0!"}},null,null,null,null,null,{"$f":"+Table7[[#This Row],[Income by Category]]","v":0},{"$f":"IF(+Table7[[#This Row],[Total]]=\"\",NA(),+Table7[[#This Row],[Total]])","v":0}]
[null,{"$f":"+Accounts!B31","v":"Office Fee"},{"$f":"SUMIF(Table5[Expense Account],B31,Table5[Debit])","v":0},{"$f":"+Table6[[#This Row],[Total]]/$C$39","v":{"$error":"#DIV/0!"}},null,{"$f":"+Accounts!D31","v":0},{"$f":"IF(SUMIF(Table5[Income Account],,Table5[Credit]),\"n/a\",SUMIF(Table5[Income Account],F31,Table5[Credit]))","v":0},{"$f":"+Table7[[#This Row],[Total]]/$G$39","v":{"$error":"#DIV/0!"}},null,null,null,null,null,{"$f":"+Table7[[#This Row],[Income by Category]]","v":0},{"$f":"IF(+Table7[[#This Row],[Total]]=\"\",NA(),+Table7[[#This Row],[Total]])","v":0}]
[null,{"$f":"+Accounts!B32","v":"Office Supplies"},{"$f":"SUMIF(Table5[Expense Account],B32,Table5[Debit])","v":0},{"$f":"+Table6[[#This Row],[Total]]/$C$39","v":{"$error":"#DIV/0!"}},null,{"$f":"+Accounts!D32","v":0},{"$f":"IF(SUMIF(Table5[Income Account],,Table5[Credit]),\"n/a\",SUMIF(Table5[Income Account],F32,Table5[Credit]))","v":0},{"$f":"+Table7[[#This Row],[Total]]/$G$39","v":{"$error":"#DIV/0!"}},null,null,null,null,null,{"$f":"+Table7[[#This Row],[Income by Category]]","v":0},{"$f":"IF(+Table7[[#This Row],[Total]]=\"\",NA(),+Table7[[#This Row],[Total]])","v":0}]
[null,{"$f":"+Accounts!B33","v":"Other"},{"$f":"SUMIF(Table5[Expense Account],B33,Table5[Debit])","v":0},{"$f":"+Table6[[#This Row],[Total]]/$C$39","v":{"$error":"#DIV/0!"}},null,{"$f":"+Accounts!D33","v":0},{"$f":"IF(SUMIF(Table5[Income Account],,Table5[Credit]),\"n/a\",SUMIF(Table5[Income Account],F33,Table5[Credit]))","v":0},{"$f":"+Table7[[#This Row],[Total]]/$G$39","v":{"$error":"#DIV/0!"}},null,null,null,null,null,{"$f":"+Table7[[#This Row],[Income by Category]]","v":0},{"$f":"IF(+Table7[[#This Row],[Total]]=\"\",NA(),+Table7[[#This Row],[Total]])","v":0}]
[null,{"$f":"+Accounts!B34","v":"Other Business Property"},{"$f":"SUMIF(Table5[Expense Account],B34,Table5[Debit])","v":0},{"$f":"+Table6[[#This Row],[Total]]/$C$39","v":{"$error":"#DIV/0!"}},null,{"$f":"+Accounts!D34","v":0},{"$f":"IF(SUMIF(Table5[Income Account],,Table5[Credit]),\"n/a\",SUMIF(Table5[Income Account],F34,Table5[Credit]))","v":0},{"$f":"+Table7[[#This Row],[Total]]/$G$39","v":{"$error":"#DIV/0!"}},null,null,null,null,null,{"$f":"+Table7[[#This Row],[Income by Category]]","v":0},{"$f":"IF(+Table7[[#This Row],[Total]]=\"\",NA(),+Table7[[#This Row],[Total]])","v":0}]
[null,{"$f":"+Accounts!B35","v":"Parking"},{"$f":"SUMIF(Table5[Expense Account],B35,Table5[Debit])","v":0},{"$f":"+Table6[[#This Row],[Total]]/$C$39","v":{"$error":"#DIV/0!"}},null,{"$f":"+Accounts!D35","v":0},{"$f":"IF(SUMIF(Table5[Income Account],,Table5[Credit]),\"n/a\",SUMIF(Table5[Income Account],F35,Table5[Credit]))","v":0},{"$f":"+Table7[[#This Row],[Total]]/$G$39","v":{"$error":"#DIV/0!"}},null,null,null,null,null,{"$f":"+Table7[[#This Row],[Income by Category]]","v":0},{"$f":"IF(+Table7[[#This Row],[Total]]=\"\",NA(),+Table7[[#This Row],[Total]])","v":0}]
[null,{"$f":"+Accounts!B36","v":"Postage"},{"$f":"SUMIF(Table5[Expense Account],B36,Table5[Debit])","v":0},{"$f":"+Table6[[#This Row],[Total]]/$C$39","v":{"$error":"#DIV/0!"}},null,{"$f":"+Accounts!D36","v":0},{"$f":"IF(SUMIF(Table5[Income Account],,Table5[Credit]),\"n/a\",SUMIF(Table5[Income Account],F36,Table5[Credit]))","v":0},{"$f":"+Table7[[#This Row],[Total]]/$G$39","v":{"$error":"#DIV/0!"}},null,null,null,null,null,{"$f":"+Table7[[#This Row],[Income by Category]]","v":0},{"$f":"IF(+Table7[[#This Row],[Total]]=\"\",NA(),+Table7[[#This Row],[Total]])","v":0}]
[null,{"$f":"+Accounts!B37","v":"Property Taxes"},{"$f":"SUMIF(Table5[Expense Account],B37,Table5[Debit])","v":0},{"$f":"+Table6[[#This Row],[Total]]/$C$39","v":{"$error":"#DIV/0!"}},null,{"$f":"+Accounts!D37","v":0},{"$f":"IF(SUMIF(Table5[Income Account],,Table5[Credit]),\"n/a\",SUMIF(Table5[Income Account],F37,Table5[Credit]))","v":0},{"$f":"+Table7[[#This Row],[Total]]/$G$39","v":{"$error":"#DIV/0!"}},null,null,null,null,null,{"$f":"+Table7[[#This Row],[Income by Category]]","v":0},{"$f":"+Table7[[#This Row],[Total]]","v":0}]
[null,{"$f":"+Accounts!B38","v":"Realtor Membership"},{"$f":"SUMIF(Table5[Expense Account],B38,Table5[Debit])","v":0},{"$f":"+Table6[[#This Row],[Total]]/$C$39","v":{"$error":"#DIV/0!"}}]
[null,{"$f":"+Accounts!B39","v":"Recruiting & Retention"},{"$f":"SUMIF(Table5[Expense Account],B39,Table5[Debit])","v":0},{"$f":"+Table6[[#This Row],[Total]]/$C$39","v":{"$error":"#DIV/0!"}},null,"TOTAL INCOME",{"$f":"SUM($G$8:G38)","v":0}]
[null,{"$f":"+Accounts!B40","v":"Rent Retail Space"},{"$f":"SUMIF(Table5[Expense Account],B40,Table5[Debit])","v":0},{"$f":"+Table6[[#This Row],[Total]]/$C$39","v":{"$error":"#DIV/0!"}}]
[null,{"$f":"+Accounts!B41","v":"Rental to Property Owners"},{"$f":"SUMIF(Table5[Expense Account],B41,Table5[Debit])","v":0},{"$f":"+Table6[[#This Row],[Total]]/$C$39","v":{"$error":"#DIV/0!"}}]
[null,{"$f":"+Accounts!B42","v":"Repairs & Maintenace"},{"$f":"SUMIF(Table5[Expense Account],B42,Table5[Debit])","v":0},{"$f":"+Table6[[#This Row],[Total]]/$C$39","v":{"$error":"#DIV/0!"}}]
[null,{"$f":"+Accounts!B43","v":"RX"},{"$f":"SUMIF(Table5[Expense Account],B43,Table5[Debit])","v":0},{"$f":"+Table6[[#This Row],[Total]]/$C$39","v":{"$error":"#DIV/0!"}}]
[null,{"$f":"+Accounts!B44","v":"SBA Interest Deduction"},{"$f":"SUMIF(Table5[Expense Account],B44,Table5[Debit])","v":0},{"$f":"+Table6[[#This Row],[Total]]/$C$39","v":{"$error":"#DIV/0!"}}]
[null,{"$f":"+Accounts!B45","v":"Signs"},{"$f":"SUMIF(Table5[Expense Account],B45,Table5[Debit])","v":0},{"$f":"+Table6[[#This Row],[Total]]/$C$39","v":{"$error":"#DIV/0!"}}]
[null,{"$f":"+Accounts!B46","v":"Training & Education"},{"$f":"SUMIF(Table5[Expense Account],B46,Table5[Debit])","v":0},{"$f":"+Table6[[#This Row],[Total]]/$C$39","v":{"$error":"#DIV/0!"}}]
[null,{"$f":"+Accounts!B47","v":"Travel"},{"$f":"SUMIF(Table5[Expense Account],B47,Table5[Debit])","v":0},{"$f":"+Table6[[#This Row],[Total]]/$C$39","v":{"$error":"#DIV/0!"}}]
[null,{"$f":"+Accounts!B48","v":"Utilities"},{"$f":"SUMIF(Table5[Expense Account],B48,Table5[Debit])","v":0},{"$f":"+Table6[[#This Row],[Total]]/$C$39","v":{"$error":"#DIV/0!"}}]
[null,{"$f":"+Accounts!B49","v":"Vehicle, Machinery & Equipment"},{"$f":"SUMIF(Table5[Expense Account],B49,Table5[Debit])","v":0},{"$f":"+Table6[[#This Row],[Total]]/$C$39","v":{"$error":"#DIV/0!"}}]
[null,{"$f":"+Accounts!B50","v":0},{"$f":"SUMIF(Table5[Expense Account],B50,Table5[Debit])","v":0},{"$f":"+Table6[[#This Row],[Total]]/$C$39","v":{"$error":"#DIV/0!"}}]
[null,{"$f":"+Accounts!B51","v":0},{"$f":"SUMIF(Table5[Expense Account],B51,Table5[Debit])","v":0},{"$f":"+Table6[[#This Row],[Total]]/$C$39","v":{"$error":"#DIV/0!"}}]
[null,{"$f":"+Accounts!B52","v":0},{"$f":"SUMIF(Table5[Expense Account],B52,Table5[Debit])","v":0},{"$f":"+Table6[[#This Row],[Total]]/$C$39","v":{"$error":"#DIV/0!"}}]
[null,{"$f":"+Accounts!B53","v":0},{"$f":"SUMIF(Table5[Expense Account],B53,Table5[Debit])","v":0},{"$f":"+Table6[[#This Row],[Total]]/$C$39","v":{"$error":"#DIV/0!"}}]
[null,{"$f":"+Accounts!B54","v":0},{"$f":"SUMIF(Table5[Expense Account],B54,Table5[Debit])","v":0},{"$f":"+Table6[[#This Row],[Total]]/$C$39","v":{"$error":"#DIV/0!"}}]
[null,{"$f":"+Accounts!B55","v":0},{"$f":"SUMIF(Table5[Expense Account],B55,Table5[Debit])","v":0},{"$f":"+Table6[[#This Row],[Total]]/$C$39","v":{"$error":"#DIV/0!"}}]
[null,{"$f":"+Accounts!B57","v":0}]
[null,"TOTAL EXPENSES",{"$f":"SUM($C$8:C56)","v":0}]
[null,{"$f":"+Accounts!B63","v":0}]
[null,{"$f":"+Accounts!B64","v":0}]
[null,{"$f":"+Accounts!B65","v":0}]
[null,{"$f":"+Accounts!B66","v":0}]
[null,{"$f":"+Accounts!B67","v":0}]
[null,{"$f":"+Accounts!B68","v":0}]
[null,{"$f":"+Accounts!B69","v":0}]
[null,{"$f":"+Accounts!B70","v":0}]
[null,{"$f":"+Accounts!B71","v":0}]
[null,{"$f":"+Accounts!B72","v":0}]
[null,{"$f":"+Accounts!B73","v":0}]
[null,{"$f":"+Accounts!B74","v":0}]
[null,{"$f":"+Accounts!B75","v":0}]
[null,{"$f":"+Accounts!B76","v":0}]
[null,{"$f":"+Accounts!B77","v":0}]
[null,{"$f":"+Accounts!B78","v":0}]
[null,{"$f":"+Accounts!B79","v":0}]
[null,{"$f":"+Accounts!B80","v":0}]
[null,{"$f":"+Accounts!B81","v":0}]
[null,{"$f":"+Accounts!B82","v":0}]
[null,{"$f":"+Accounts!B83","v":0}]
[null,{"$f":"+Accounts!B84","v":0}]
[null,{"$f":"+Accounts!B85","v":0}]
[null,{"$f":"+Accounts!B86","v":0}]
[null,{"$f":"+Accounts!B87","v":0}]
[null,{"$f":"+Accounts!B88","v":0}]
[null,{"$f":"+Accounts!B89","v":0}]
[null,{"$f":"+Accounts!B90","v":0}]
[null,{"$f":"+Accounts!B91","v":0}]
[null,{"$f":"+Accounts!B92","v":0}]
[null,{"$f":"+Accounts!B93","v":0}]
[null,{"$f":"+Accounts!B94","v":0}]
[null,{"$f":"+Accounts!B95","v":0}]
[null,{"$f":"+Accounts!B96","v":0}]
[null,{"$f":"+Accounts!B97","v":0}]
[null,{"$f":"+Accounts!B98","v":0}]
[null,{"$f":"+Accounts!B99","v":0}]
[null,{"$f":"+Accounts!B100","v":0}]
[null,{"$f":"+Accounts!B101","v":0}]
[null,{"$f":"+Accounts!B102","v":0}]
[null,{"$f":"+Accounts!B103","v":0}]
[null,{"$f":"+Accounts!B104","v":0}]
[null,{"$f":"+Accounts!B105","v":0}]
[null,{"$f":"+Accounts!B106","v":0}]
[null,{"$f":"+Accounts!B107","v":0}]
[null,{"$f":"+Accounts!B108","v":0}]
[null,{"$f":"+Accounts!B109","v":0}]
[null,{"$f":"+Accounts!B110","v":0}]
[null,{"$f":"+Accounts!B111","v":0}]
[null,{"$f":"+Accounts!B112","v":0}]
[null,{"$f":"+Accounts!B113","v":0}]
[null,{"$f":"+Accounts!B114","v":0}]
[null,{"$f":"+Accounts!B115","v":0}]
[null,{"$f":"+Accounts!B116","v":0}]
[null,{"$f":"+Accounts!B117","v":0}]
[null,{"$f":"+Accounts!B118","v":0}]
[null,{"$f":"+Accounts!B119","v":0}]
[null,{"$f":"+Accounts!B120","v":0}]
[null,{"$f":"+Accounts!B121","v":0}]
[null,{"$f":"+Accounts!B122","v":0}]
[null,{"$f":"+Accounts!B123","v":0}]
[null,{"$f":"+Accounts!B124","v":0}]
[null,{"$f":"+Accounts!B125","v":0}]
[null,{"$f":"+Accounts!B126","v":0}]
[null,{"$f":"+Accounts!B127","v":0}]
[null,{"$f":"+Accounts!B128","v":0}]
[null,{"$f":"+Accounts!B129","v":0}]
[null,{"$f":"+Accounts!B130","v":0}]
[null,{"$f":"+Accounts!B131","v":0}]
[null,{"$f":"+Accounts!B132","v":0}]
[null,{"$f":"+Accounts!B133","v":0}]
[null,{"$f":"+Accounts!B134","v":0}]
[null,{"$f":"+Accounts!B135","v":0}]
[null,{"$f":"+Accounts!B136","v":0}]
[null,{"$f":"+Accounts!B137","v":0}]
[null,{"$f":"+Accounts!B138","v":0}]
[null,{"$f":"+Accounts!B139","v":0}]
[null,{"$f":"+Accounts!B140","v":0}]
[null,{"$f":"+Accounts!B141","v":0}]
[null,{"$f":"+Accounts!B142","v":0}]
[null,{"$f":"+Accounts!B143","v":0}]
[null,{"$f":"+Accounts!B144","v":0}]
[null,{"$f":"+Accounts!B145","v":0}]
[null,{"$f":"+Accounts!B146","v":0}]
[null,{"$f":"+Accounts!B147","v":0}]
[null,{"$f":"+Accounts!B148","v":0}]
[null,{"$f":"+Accounts!B149","v":0}]
[null,{"$f":"+Accounts!B150","v":0}]
[null,{"$f":"+Accounts!B151","v":0}]
[null,{"$f":"+Accounts!B152","v":0}]
[null,{"$f":"+Accounts!B153","v":0}]
[null,{"$f":"+Accounts!B154","v":0}]
[null,{"$f":"+Accounts!B155","v":0}]
[null,{"$f":"+Accounts!B156","v":0}]
[null,{"$f":"+Accounts!B157","v":0}]
[null,{"$f":"+Accounts!B158","v":0}]
[null,{"$f":"+Accounts!B159","v":0}]
[null,{"$f":"+Accounts!B160","v":0}]
[null,{"$f":"+Accounts!B161","v":0}]
[null,{"$f":"+Accounts!B162","v":0}]
[null,{"$f":"+Accounts!B163","v":0}]
[null,{"$f":"+Accounts!B164","v":0}]
[null,{"$f":"+Accounts!B165","v":0}]
[null,{"$f":"+Accounts!B166","v":0}]
[null,{"$f":"+Accounts!B167","v":0}]
[null,{"$f":"+Accounts!B168","v":0}]
[null,{"$f":"+Accounts!B169","v":0}]
[null,{"$f":"+Accounts!B170","v":0}]
[null,{"$f":"+Accounts!B171","v":0}]
[null,{"$f":"+Accounts!B172","v":0}]
[null,{"$f":"+Accounts!B173","v":0}]
[null,{"$f":"+Accounts!B174","v":0}]
[null,{"$f":"+Accounts!B175","v":0}]
[null,{"$f":"+Accounts!B176","v":0}]
[null,{"$f":"+Accounts!B177","v":0}]
[null,{"$f":"+Accounts!B178","v":0}]
[null,{"$f":"+Accounts!B179","v":0}]
[null,{"$f":"+Accounts!B180","v":0}]
[null,{"$f":"+Accounts!B181","v":0}]
[null,{"$f":"+Accounts!B182","v":0}]
[null,{"$f":"+Accounts!B183","v":0}]
[null,{"$f":"+Accounts!B184","v":0}]
[null,{"$f":"+Accounts!B185","v":0}]
[null,{"$f":"+Accounts!B186","v":0}]
[null,{"$f":"+Accounts!B187","v":0}]
[null,{"$f":"+Accounts!B188","v":0}]
[null,{"$f":"+Accounts!B189","v":0}]
[null,{"$f":"+Accounts!B190","v":0}]
[null,{"$f":"+Accounts!B191","v":0}]
[null,{"$f":"+Accounts!B192","v":0}]
[null,{"$f":"+Accounts!B193","v":0}]
[null,{"$f":"+Accounts!B194","v":0}]
[null,{"$f":"+Accounts!B195","v":0}]
[null,{"$f":"+Accounts!B196","v":0}]
[null,{"$f":"+Accounts!B197","v":0}]
[null,{"$f":"+Accounts!B198","v":0}]
[null,{"$f":"+Accounts!B199","v":0}]
[null,{"$f":"+Accounts!B200","v":0}]
[null,{"$f":"+Accounts!B201","v":0}]
[null,{"$f":"+Accounts!B202","v":0}]
[null,{"$f":"+Accounts!B203","v":0}]
[null,{"$f":"+Accounts!B204","v":0}]
[null,{"$f":"+Accounts!B205","v":0}]
[null,{"$f":"+Accounts!B206","v":0}]
[null,{"$f":"+Accounts!B207","v":0}]
[null,{"$f":"+Accounts!B208","v":0}]
[null,{"$f":"+Accounts!B209","v":0}]
[null,{"$f":"+Accounts!B210","v":0}]
[null,{"$f":"+Accounts!B211","v":0}]
[null,{"$f":"+Accounts!B212","v":0}]
[null,{"$f":"+Accounts!B213","v":0}]
[null,{"$f":"+Accounts!B214","v":0}]
[null,{"$f":"+Accounts!B215","v":0}]
[null,{"$f":"+Accounts!B216","v":0}]
[null,{"$f":"+Accounts!B217","v":0}]
[null,{"$f":"+Accounts!B218","v":0}]
[null,{"$f":"+Accounts!B219","v":0}]
[null,{"$f":"+Accounts!B220","v":0}]
[null,{"$f":"+Accounts!B221","v":0}]
[null,{"$f":"+Accounts!B222","v":0}]
[null,{"$f":"+Accounts!B223","v":0}]
[null,{"$f":"+Accounts!B224","v":0}]
[null,{"$f":"+Accounts!B225","v":0}]
[null,{"$f":"+Accounts!B226","v":0}]
[null,{"$f":"+Accounts!B227","v":0}]
[null,{"$f":"+Accounts!B228","v":0}]
[null,{"$f":"+Accounts!B229","v":0}]
[null,{"$f":"+Accounts!B230","v":0}]
[null,{"$f":"+Accounts!B231","v":0}]
[null,{"$f":"+Accounts!B232","v":0}]
[null,{"$f":"+Accounts!B233","v":0}]
[null,{"$f":"+Accounts!B234","v":0}]
[null,{"$f":"+Accounts!B235","v":0}]
[null,{"$f":"+Accounts!B236","v":0}]
[null,{"$f":"+Accounts!B237","v":0}]
[null,{"$f":"+Accounts!B238","v":0}]
[null,{"$f":"+Accounts!B239","v":0}]
[null,{"$f":"+Accounts!B240","v":0}]
[null,{"$f":"+Accounts!B241","v":0}]
[null,{"$f":"+Accounts!B242","v":0}]
[null,{"$f":"+Accounts!B243","v":0}]
[null,{"$f":"+Accounts!B244","v":0}]
[null,{"$f":"+Accounts!B245","v":0}]
[null,{"$f":"+Accounts!B246","v":0}]
[null,{"$f":"+Accounts!B247","v":0}]
[null,{"$f":"+Accounts!B248","v":0}]
[null,{"$f":"+Accounts!B249","v":0}]
[null,{"$f":"+Accounts!B250","v":0}]
[null,{"$f":"+Accounts!B251","v":0}]
[null,{"$f":"+Accounts!B252","v":0}]
[null,{"$f":"+Accounts!B253","v":0}]
[null,{"$f":"+Accounts!B254","v":0}]
[null,{"$f":"+Accounts!B255","v":0}]
[null,{"$f":"+Accounts!B256","v":0}]
[null,{"$f":"+Accounts!B257","v":0}]
[null,{"$f":"+Accounts!B258","v":0}]
[null,{"$f":"+Accounts!B259","v":0}]
[null,{"$f":"+Accounts!B260","v":0}]
[null,{"$f":"+Accounts!B261","v":0}]
[null,{"$f":"+Accounts!B262","v":0}]
[null,{"$f":"+Accounts!B263","v":0}]
[null,{"$f":"+Accounts!B264","v":0}]
[null,{"$f":"+Accounts!B265","v":0}]
[null,{"$f":"+Accounts!B266","v":0}]
[null,{"$f":"+Accounts!B267","v":0}]
[null,{"$f":"+Accounts!B268","v":0}]
[null,{"$f":"+Accounts!B269","v":0}]
[null,{"$f":"+Accounts!B270","v":0}]
[null,{"$f":"+Accounts!B271","v":0}]
[null,{"$f":"+Accounts!B272","v":0}]
[null,{"$f":"+Accounts!B273","v":0}]
[null,{"$f":"+Accounts!B274","v":0}]
[null,{"$f":"+Accounts!B275","v":0}]
[null,{"$f":"+Accounts!B276","v":0}]
[null,{"$f":"+Accounts!B277","v":0}]
[null,{"$f":"+Accounts!B278","v":0}]
[null,{"$f":"+Accounts!B279","v":0}]
[null,{"$f":"+Accounts!B280","v":0}]
[null,{"$f":"+Accounts!B281","v":0}]
[null,{"$f":"+Accounts!B282","v":0}]
[null,{"$f":"+Accounts!B283","v":0}]
[null,{"$f":"+Accounts!B284","v":0}]
[null,{"$f":"+Accounts!B285","v":0}]
[null,{"$f":"+Accounts!B286","v":0}]
[null,{"$f":"+Accounts!B287","v":0}]
[null,{"$f":"+Accounts!B288","v":0}]
[null,{"$f":"+Accounts!B289","v":0}]
[null,{"$f":"+Accounts!B290","v":0}]
[null,{"$f":"+Accounts!B291","v":0}]
[null,{"$f":"+Accounts!B292","v":0}]
[null,{"$f":"+Accounts!B293","v":0}]
[null,{"$f":"+Accounts!B294","v":0}]
[null,{"$f":"+Accounts!B295","v":0}]
[null,{"$f":"+Accounts!B296","v":0}]
[null,{"$f":"+Accounts!B297","v":0}]
[null,{"$f":"+Accounts!B298","v":0}]
[null,{"$f":"+Accounts!B299","v":0}]
[null,{"$f":"+Accounts!B300","v":0}]
[null,{"$f":"+Accounts!B301","v":0}]
[null,{"$f":"+Accounts!B302","v":0}]
[null,{"$f":"+Accounts!B303","v":0}]
[null,{"$f":"+Accounts!B304","v":0}]
[null,{"$f":"+Accounts!B305","v":0}]
[null,{"$f":"+Accounts!B306","v":0}]
[null,{"$f":"+Accounts!B307","v":0}]
[null,{"$f":"+Accounts!B308","v":0}]
[null,{"$f":"+Accounts!B309","v":0}]
[null,{"$f":"+Accounts!B310","v":0}]
[null,{"$f":"+Accounts!B311","v":0}]